Cogmind - Beta 14 @@@ ROGUE MODE // 2025.03.05 @ 05:50:12 Player: Darby Result: Destroyed by M Guard with Ragnarok Missile Launcher Performance ------------- Evolutions (9) 4500 Regions Visited (32) 6400 Robots Destroyed (621) 3105 Value Destroyed (28060) 28060 Prototype IDs (73) 1460 Alien Tech Used (0) 0 Bonus (20995) 20995 TOTAL SCORE: 64520 Bonus ------- High Alert Combat Kills 5368 Follower Combat Kills 1982 Entered Garrisons 1200 Used RIF Installer 4000 Network Hubs Disabled 400 Aligned with FarCom 300 Built Enhanced Grunts 300 A7 Reached Mainframe 300 Met R17 at Cetus 500 Met R17 at Research 2000 Met MAIN.C 5000 Friendly Fire -355 Cogmind --------- Core Integrity 0/1600 Matter 300/300 Energy 100/100 System Corruption 2% Temperature Cool (1) Movement Flying (45) Location -1/Command Parts ------- > --- POWER (2) -------- (None) > --- PROPULSION (8) --- Impulse Thruster Array > --- UTILITY (11) ----- Core Analyzer Graphene Brace Relay Coupler [NC] (20) > --- WEAPON (4) ------- (None) > --- INVENTORY (5) ---- Advanced Transmission Jammer Advanced Cloaking Device Relay Coupler [NC] (27) Enhanced Nova Cannon Advanced Datajack Peak State ------------ > --- POWER ------------ Micro Antimatter Reactor Light Quantum Reactor > --- PROPULSION ------- Cooled Gravmag System Combat Antigrav System Combat Antigrav System Antigrav Array Combat Linear Gravjet Combat Linear Gravjet Combat Linear Gravjet > --- UTILITY ---------- Advanced Heat Sink Large Storage Unit Weapon Mount Core Analyzer Microactuators Experimental Reaction Control System Powered Armor Powered Armor Graphene Brace Relay Coupler [NC] > --- WEAPON ----------- Advanced Datajack Heavy Pick Lance Enhanced Force Lance > --- INVENTORY -------- Particle Reactor Antigrav System Antigrav System Experimental Cooling System Structural Scanner Advanced Transmission Jammer Advanced ECM Suite Advanced Cloaking Device Advanced Force Field Antimissile System Relay Coupler [NC] Enhanced Nova Cannon Tiamat Missile Launcher Improved Plasma Cutter [Rating: 162] Favorites ----------- Power Cooled Ion Engine Engine Cooled Ion Engine Power Core Fission Core Reactor Light Particle Reactor Propulsion Combat Airjet Treads Light Treads Leg Aluminum Leg Wheel Wheel Hover Unit Combat Airjet Flight Unit Impulse Thruster Array Utility Large Storage Unit Device Microactuators Storage Large Storage Unit Processor Core Analyzer Hackware Hacking Suite Protection Powered Armor Weapon Power Sword Energy Gun Improved EM Shotgun Energy Cannon Advanced Beam Cannon Ballistic Gun Autogun Launcher Tiamat Missile Launcher Special Weapon Remote Datajack Impact Weapon Impact Mace Slashing Weapon Power Sword Piercing Weapon Enhanced Force Lance Special Melee Weapon Improved Datajack Build | -11 -10 -10 -9 -9 -9 -8 -8 -8 -7 -7 -7 -7 -7 -7 -6 -6 -5 -5 -5 -5 -5 -5 -5 -4 -4 -4 -4 -3 -3 -2 -1 -1 ------- Run | Yrd Mat Min Mat Min Exi Min Mat Gar Fac Was Fac Gar Fac Gar Fac Gar Fac Was Fac Ext Cet Arc Hub Fac Gar Fac Gar Res Arm Res Acc Com Slots Evolved 18 | . . . 2 . . . 2 . 2 . . . . . 2 . 2 . . . . . . 2 . . . 2 . 2 2 . Power 1 | . . . . . . . . . . . . . . . . . 1 . . . . . . . . . . . . . . . Propulsion 6 | . . . . . . . 1 . 2 . . . . . . . 1 . . . . . . 1 . . . 1 . . . . Utility 9 | . . . 2 . . . 1 . . . . . . . 2 . . . . . . . . . . . . 1 . 2 1 . Weapon 2 | . . . . . . . . . . . . . . . . . . . . . . . . 1 . . . . . . 1 . Parts Attached 714 | 7 41 9 35 2 . 14 34 14 39 2 57 33 31 7 52 23 36 6 32 21 9 . 3 14 14 22 10 46 28 34 21 18 Power 53 | 1 2 . 2 . . . . 1 1 . . 3 2 . 3 4 7 2 2 . . . . . 1 3 2 7 1 3 1 5 Engine 10 | 1 1 . 2 . . . . . . . . . . . 1 4 . . . . . . . . . . . . . 1 . . Core 27 | . 1 . . . . . . 1 1 . . 3 2 . 2 . 7 1 2 . . . . . 1 3 2 1 . . . . Reactor 16 | . . . . . . . . . . . . . . . . . . 1 . . . . . . . . . 6 1 2 1 5 Propulsion 114 | 2 12 2 11 . . 2 12 1 7 . 8 . 2 . 9 . 9 2 5 1 . . 1 2 . 1 . 11 6 1 4 3 Treads 34 | . 8 1 11 . . 2 10 1 1 . . . . . . . . . . . . . . . . . . . . . . . Leg 4 | . 4 . . . . . . . . . . . . . . . . . . . . . . . . . . . . . . . Wheel 8 | 2 . 1 . . . . 2 . . . . . . . 3 . . . . . . . . . . . . . . . . . Hover 67 | . . . . . . . . . 6 . 8 . 2 . 6 . 9 2 5 1 . . 1 2 . 1 . 11 6 1 4 2 Flight 1 | . . . . . . . . . . . . . . . . . . . . . . . . . . . . . . . . 1 Utility 241 | 2 2 2 11 . . 2 10 2 11 . 29 9 13 1 20 4 9 2 18 1 3 . 2 7 5 14 3 20 9 20 3 7 Device 144 | 1 . . 4 . . . 1 1 9 . 12 5 8 . 10 1 8 1 13 . 2 . 1 5 4 9 2 20 3 17 1 6 Storage 2 | 1 1 . . . . . . . . . . . . . . . . . . . . . . . . . . . . . . . Processor 9 | . 1 . 1 . . . 1 . . . 1 . . . 3 . 1 1 . . . . . . . . . . . . . . Hackware 34 | . . . 1 . . . . . 1 . 7 3 3 . 5 1 . . 4 . . . . . 1 3 . . 2 1 1 1 Protection 52 | . . 2 5 . . 2 8 1 1 . 9 1 2 1 2 2 . . 1 1 1 . 1 2 . 2 1 . 4 2 1 . Artifact . | . . . . . . . . . . . . . . . . . . . . . . . . . . . . . . . . . Weapon 306 | 2 25 5 11 2 . 10 12 10 20 2 20 21 14 6 20 15 11 . 7 19 6 . . 5 8 4 5 8 12 10 13 3 Energy Gun 41 | 1 9 . 6 . . 5 6 7 4 2 1 . . . . . . . . . . . . . . . . . . . . . Energy Cannon 42 | . . . 1 . . . 2 . 1 . 5 3 . . 4 1 2 . 3 8 1 . . 1 1 . . 1 2 1 3 2 Ballistic Gun 16 | 1 5 3 4 . . . 1 . 2 . . . . . . . . . . . . . . . . . . . . . . . Ballistic Cannon . | . . . . . . . . . . . . . . . . . . . . . . . . . . . . . . . . . Launcher 46 | . 1 2 . . . 4 . 2 3 . 2 4 4 2 . 3 2 . . 2 1 . . 1 3 . 2 1 1 3 3 . Special Weapon 23 | . 10 . . . . . . . . . 4 5 1 . . . . . . 1 1 . . . . . . . . . 1 . Impact Weapon 29 | . . . . 1 . 1 2 . . . 2 9 9 3 2 . . . . . . . . . . . . . . . . . Slashing Weapon 68 | . . . . . . . 1 . 6 . 6 . . . 12 9 6 . 4 7 3 . . 2 3 4 3 2 . . . . Piercing Weapon 21 | . . . . . . . . . . . . . . . . . . . . . . . . . . . . 4 7 5 4 1 Special Melee Weapon 20 | . . . . 1 . . . 1 4 . . . . 1 2 2 1 . . 1 . . . 1 1 . . . 2 1 2 . Unidentified Prototypes 19 | . . . 4 . . . 1 . 4 . 1 . 1 . 1 . 3 . 2 . 1 . . . . . . 1 . . . . Parts Lost 83 | . 1 3 6 . . 4 7 . 3 . . 2 . 2 8 6 1 . . . 2 . . 1 . 1 5 1 . 7 1 22 Power 15 | . 1 . 1 . . . . . . . . 2 . . . 2 . . . . . . . . . . 2 1 . 2 . 4 Propulsion 21 | . . 2 . . . . 2 . . . . . . . 4 1 . . . . . . . 1 . . . . . 2 . 9 Utility 32 | . . 1 2 . . 2 4 . 1 . . . . 1 3 2 1 . . . 1 . . . . . 2 . . 3 1 8 Weapon 15 | . . . 3 . . 2 1 . 2 . . . . 1 1 1 . . . . 1 . . . . 1 1 . . . . 1 Highest Loss Streak 19 | . 1 2 4 . . 2 3 . 1 . . 1 . 1 6 2 1 . . . 2 . . 1 . 1 5 1 . 4 1 19 To Critical Strikes 1 | . . . . . . . . . . . . . . . . . . . . . 1 . . . . . . . . . . . Average Slot Usage (%) 93 | . 99 98 98 100 100 91 90 99 99 99 99 99 97 100 83 78 80 87 88 99 96 100 94 93 93 93 92 91 93 93 88 52 Engine 2 | . 4 . 10 11 11 11 9 . . . . . . . . 3 2 . . . . . . . . . . . . . . . Core 5 | . 9 14 . . . . . 8 7 7 7 6 7 7 6 2 7 10 11 11 11 11 11 10 9 10 9 2 . . . . Reactor 1 | . . . . . . . . . . . . . . . . . . . . . . . . . . . . 5 9 6 8 4 Treads 6 | . 21 26 21 22 22 22 25 27 . . . . . . . . . . . . . . . . . . . . . . . . Hover 21 | . . . . . . . . . 37 38 37 38 37 38 22 15 16 23 25 35 35 35 29 30 31 30 31 29 31 29 27 14 Device 15 | . 2 . 11 11 11 11 9 11 17 15 5 18 16 23 17 22 16 17 15 23 19 23 23 15 20 16 20 22 23 21 21 11 Storage 7 | . 14 14 11 11 11 11 9 9 7 7 7 7 7 7 6 6 5 5 5 5 5 5 5 5 5 5 5 4 4 4 4 2 Processor 5 | . 11 9 9 11 11 4 1 9 . . 2 . . . 6 6 10 11 10 5 5 5 5 5 5 5 5 4 4 4 4 4 Hackware 3 | . . . 8 11 11 . . . 4 7 16 4 3 . 6 4 . . . . . . . . . 3 . . . 3 1 3 Protection 5 | . . 4 4 . . 10 17 14 6 7 4 6 7 7 3 2 5 5 5 4 5 5 5 9 5 5 4 4 3 7 6 3 Energy Gun 3 | . 5 . 19 21 . 16 8 16 1 6 . . . . . . . . . . . . . . . . . . . . . . Ballistic Gun 1 | . 14 22 1 . . . . . . . . . . . . . . . . . . . . . . . . . . . . . Impact Weapon 2 | . . . . . 11 4 4 . . . . 11 14 14 3 . . . . . . . . . . . . . . . . . Slashing Weapon 4 | . . . . . . . 1 . 5 7 6 . . . 8 11 10 11 10 5 9 11 11 9 9 14 14 8 . . . . Piercing Weapon 1 | . . . . . . . . . . . . . . . . . . . . . . . . . . . . 5 13 12 11 6 Peak Build Rating 162 | 8 12 16 24 25 24 24 30 32 56 55 59 61 64 64 68 75 85 83 91 91 96 96 96 115 112 107 109 149 145 151 159 162 Average Rating 66 | 6 9 12 21 24 23 22 23 29 50 54 53 58 57 63 61 67 76 79 84 89 89 95 93 109 106 101 104 130 141 143 151 92 On Entrance 68 | . 8 12 16 24 23 24 19 29 29 51 55 58 57 64 63 68 66 79 79 90 91 95 96 94 109 108 101 107 142 139 123 156 Naked Turns . | . . . . . . . . . . . . . . . . . . . . . . . . . . . . . . . . . Heaviest Build 100 | 11 31 34 41 35 33 42 49 41 44 42 50 56 53 53 54 57 65 58 66 71 71 65 65 72 81 74 81 82 85 91 100 96 Greatest Support 116 | 26 40 40 46 46 46 46 60 60 54 54 54 56 56 53 57 60 72 63 69 65 65 65 66 77 86 77 86 103 114 114 116 116 Greatest Overweight (x) 4 | . . 3 3 . . . 4 . . . . 1 1 . 2 1 3 . 1 1 1 . . . 1 1 1 . . 1 . 1 Average Overweight (x) . | . . . . . . . . . . . . . . . . . . . . . . . . . . . . . . . . . Largest Inventory Capacity 15 | 8 15 15 15 15 15 15 15 15 15 15 15 15 15 15 15 15 15 15 15 15 15 15 15 15 15 15 15 15 15 15 15 15 Average Capacity 14 | 7 11 15 15 15 15 15 15 15 15 15 15 15 15 15 15 15 15 15 15 15 15 15 15 15 15 15 15 15 15 15 15 10 Most Carried 15 | 8 15 15 15 15 15 15 15 15 15 15 15 15 15 15 15 15 15 15 15 14 15 15 15 14 15 15 15 15 15 14 15 15 Average Carried 13 | 5 10 14 14 15 14 12 14 14 14 14 14 14 14 13 14 14 14 15 14 12 13 14 14 13 13 14 11 14 14 13 14 10 Final Capacity 15 | 8 15 15 15 15 15 15 15 15 15 15 15 15 15 15 15 15 15 15 15 15 15 15 15 15 15 15 15 15 15 15 15 5 Final Carried 15 | 8 15 15 15 15 15 12 15 15 15 15 13 15 15 14 12 14 15 15 12 14 15 15 15 13 15 14 11 15 15 14 15 5 Class Distribution -------------------- 26% | Mutant 19% | Gladiator 16% | Scavenger-Mutant 11% | Scavenger-Gladiator 8% | Commander-Gladiator 5% | Hacker-Mutant 3% | Scout Dominant Class ---------------- Mutant | -10/Materials Mutant | -10/Mines Mutant | -9/Materials Mutant | -9/Mines Mutant | -9/Exiles Mutant | -8/Mines Scavenger-Mutant | -8/Materials Mutant | -8/Garrison Scavenger-Mutant | -7/Factory Scavenger-Mutant | -7/Waste Hacker-Mutant | -7/Factory Scavenger-Gladiator | -7/Garrison Gladiator | -7/Factory Gladiator | -7/Garrison Gladiator | -6/Factory Gladiator | -6/Garrison Scout | -5/Factory Scout | -5/Waste Infiltrator-Ninja | -5/Factory Commander-Mutant | -5/Extension Commander-Gladiator | -5/Cetus Commander-Gladiator | -5/Archives Commander-Gladiator | -5/Hub_04(d) Mutant | -4/Factory Gladiator | -4/Garrison Hacker-Mutant | -4/Factory Gladiator | -4/Garrison Gladiator | -3/Research Scavenger-Gladiator | -3/Armory Scavenger-Gladiator | -2/Research Scavenger-Gladiator | -1/Access Mutant | -1/Command Resources | -11 -10 -10 -9 -9 -9 -8 -8 -8 -7 -7 -7 -7 -7 -7 -6 -6 -5 -5 -5 -5 -5 -5 -5 -4 -4 -4 -4 -3 -3 -2 -1 -1 ----------- Run | Yrd Mat Min Mat Min Exi Min Mat Gar Fac Was Fac Gar Fac Gar Fac Gar Fac Was Fac Ext Cet Arc Hub Fac Gar Fac Gar Res Arm Res Acc Com Matter Collected 10644 | 303 534 581 607 . . 274 303 249 513 . 587 739 475 181 531 420 440 40 338 385 196 59 30 185 390 205 301 480 305 495 375 123 Remotely . | . . . . . . . . . . . . . . . . . . . . . . . . . . . . . . . . . Salvage Created 26999 | 187 752 454 2296 265 . 389 1749 660 526 . 1073 807 1139 547 1821 1373 1388 . 741 1247 117 411 87 605 1243 357 797 1440 746 1648 1786 348 Parts 1294 | 20 62 25 129 23 . 25 82 32 27 . 77 25 32 17 67 64 74 . 41 42 4 39 6 15 58 14 43 57 38 79 70 7 Haulers Intercepted 40 | . 2 . 6 . . . 5 . 4 . 4 . 5 . . . 3 . 3 . . . . . . . . 4 . 2 2 . Recyclers Shooed 10 | . 2 3 1 1 . . . . . . 2 . . . . . 1 . . . . . . . . . . . . . . . Parts Field Recycled . | . . . . . . . . . . . . . . . . . . . . . . . . . . . . . . . . . Retrieved Matter . | . . . . . . . . . . . . . . . . . . . . . . . . . . . . . . . . . Parts Self-Destructed . | . . . . . . . . . . . . . . . . . . . . . . . . . . . . . . . . . Prevented . | . . . . . . . . . . . . . . . . . . . . . . . . . . . . . . . . . Kills | -11 -10 -10 -9 -9 -9 -8 -8 -8 -7 -7 -7 -7 -7 -7 -6 -6 -5 -5 -5 -5 -5 -5 -5 -4 -4 -4 -4 -3 -3 -2 -1 -1 ------- Run | Yrd Mat Min Mat Min Exi Min Mat Gar Fac Was Fac Gar Fac Gar Fac Gar Fac Was Fac Ext Cet Arc Hub Fac Gar Fac Gar Res Arm Res Acc Com Combat Hostiles Destroyed 439 | . 13 23 35 5 . 16 23 15 4 . 15 22 20 14 21 30 12 . 4 20 2 1 1 9 27 3 22 11 13 26 28 4 Melee 158 | . . . . . . . 4 . 2 . 8 4 7 5 14 14 6 . 4 9 . 1 1 7 9 3 11 9 9 14 13 4 Guns 78 | . 13 8 29 4 . 5 8 10 1 . . . . . . . . . . . . . . . . . . . . . . . Cannons 12 | . . . . . . . 4 . . . . . . . . 1 1 . . 2 . . . . 1 . . . 2 . 1 . AOE 152 | . . 15 6 1 . 11 . 4 1 . 7 9 5 5 1 15 5 . . 6 1 . . 2 17 . 11 2 2 12 14 . Classes Destroyed 21 | 3 6 2 3 . . 1 1 2 1 . . 1 . . . . . . . . . . . . . . . 1 . . . . Worker 37 | 2 4 3 1 2 . 1 5 . 2 . 3 . 2 . 2 . 3 . 2 . . . . . . . . 4 . 1 . . Builder 29 | . 4 1 1 2 . 1 3 . 1 . 4 . 1 . 2 . 4 . 3 . . . . . . . . . . 1 1 . Tunneler 15 | 5 . 1 1 2 . 2 1 . . . 1 . 1 . . . . . . . . . . . . . . 1 . . . . Hauler 40 | . 2 . 6 . . . 5 . 4 . 4 . 5 . . . 3 . 3 . . . . . . . . 4 . 2 2 . Recycler 21 | 1 2 . 4 . . . 1 . 1 . 2 . 1 . 4 . 3 . . . . . . . . 1 . . . . 1 . Mechanic 2 | . . . 1 . . . . . 1 . . . . . . . . . . . . . . . . . . . . . . . Operator 13 | . 1 . 1 . . . . . . . 1 . . . . . . . . . . 9 . . . . . 1 . . . . Watcher 39 | . 2 . 5 . . . 2 . . . 1 . 3 . 5 . 4 . 3 . 2 . . . . 1 . 3 1 4 3 . Swarmer 104 | . 8 . 7 2 . 7 . . 1 . 4 5 6 6 . 7 3 . 1 . . . . . 8 . 13 1 6 10 9 . Cutter 9 | . . . . . . . . 1 . . . 1 . . 3 . . . . . . . . . 4 . . . . . . . Grunt 155 | . 5 6 17 3 . 7 14 5 1 . 7 5 5 2 8 13 4 . 2 12 . . . 8 11 . 3 4 . 4 9 . Brawler 9 | . . . . . . 1 1 2 . . . 1 . . . . . . . 1 . . . . 2 . 1 . . . . . Duelist 11 | . . . 2 . . 1 1 1 1 . . 1 . . 1 1 . . . . . . . . . . . . 2 . . . Sentry 72 | . . . 9 . . . 6 4 . . . 5 3 4 3 6 3 . 1 7 . 1 1 1 2 1 2 3 2 5 3 . Demolisher 3 | . . 2 . . . . . . . . . . . . . . . . . . . . . . . . . 1 . . . . Hunter 23 | . . . . . . . 1 1 . . 1 1 1 2 4 3 1 . . . . . . . . . . . 2 2 2 2 Programmer 29 | . . . . . . . . . 1 . 3 2 5 . 2 . 1 . . . . . . . . 2 2 . 1 5 5 . Heavy 1 | . . . . . . . . . . . . 1 . . . . . . . . . . . . . . . . . . . . Behemoth 3 | . . . . . . . . 1 . . . . . . . . . . . . . . . . 1 . 1 . . . . . Cetus Guard 2 | . . . . . . . . . . . . . . . . . . . . . 2 . . . . . . . . . . . Combat Programmer 2 | . . . . . . . . . . . . . . . . . . . . . . . . . . . . . . . . 2 Striker 2 | . . . . . . . . . . . . . . . . . . . . . . . . . . . . 2 . . . . Assembled 15 | . . 15 . . . . . . . . . . . . . . . . . . . . . . . . . . . . . . Best Kill Streak 15 | 6 7 15 5 7 . 7 5 6 4 . 7 4 3 7 6 11 10 . 2 5 2 9 1 3 13 2 5 5 3 10 15 2 Combat Bots Only 15 | . 3 15 3 3 . 7 3 6 1 . 5 4 3 7 4 11 6 . 2 5 1 1 1 3 13 2 5 2 3 10 14 2 Max Kills in Single Turn 8 | 1 1 8 3 4 . 4 2 2 1 . 3 2 1 2 1 4 3 . 1 3 1 1 1 1 4 1 4 2 2 3 4 1 Gunslinging . | . . . . . . . . . . . . . . . . . . . . . . . . . . . . . . . . . Exploded 8 | . . 8 1 1 . 4 . 2 1 . 2 2 1 2 1 4 3 . . 3 1 . . 1 4 . 4 2 2 3 4 . Melee 1 | . . . . . . . 1 . 1 . 1 1 1 1 1 1 1 . 1 1 . 1 1 1 1 1 1 1 1 1 1 1 Uniques/NPCs Destroyed . | . . . . . . . . . . . . . . . . . . . . . . . . . . . . . . . . . Combat | -11 -10 -10 -9 -9 -9 -8 -8 -8 -7 -7 -7 -7 -7 -7 -6 -6 -5 -5 -5 -5 -5 -5 -5 -4 -4 -4 -4 -3 -3 -2 -1 -1 -------- Run | Yrd Mat Min Mat Min Exi Min Mat Gar Fac Was Fac Gar Fac Gar Fac Gar Fac Was Fac Ext Cet Arc Hub Fac Gar Fac Gar Res Arm Res Acc Com Hostile Shots Fired 2133 | . 60 48 107 18 . 38 119 74 42 . 41 153 207 117 154 206 34 . 23 64 26 11 . 52 77 22 61 19 22 106 73 159 Missed 806 | . 12 10 25 8 . 13 25 17 16 . 17 83 95 45 59 67 16 . 9 27 8 2 . 16 33 9 21 8 16 55 44 50 Intercepted 6 | . . . . . . . . . . . . . . . . . . . . . . . . . . . . . . . . 6 Damage Taken 23641 | . 482 866 1307 98 . 449 1557 1064 421 . 344 835 1140 844 1349 1547 376 . 197 655 277 146 . 774 950 355 976 481 217 1208 672 4054 Core 3809 | . 80 136 157 16 . 63 81 246 29 . 77 51 158 96 161 234 38 . 21 80 15 14 . 26 114 21 87 94 24 70 156 1464 Absorbed by Shields 971 | . . . . . . . . 42 . . 10 18 . 9 11 177 . . . 240 236 109 . . . . 37 . 75 . 7 . Redirected to Shielding 222 | . . . . . . . . . . . . . . . 99 . . . . . . . . . . . . . . 123 . . Ignored by Resistances 6 | . . . . . . . . . 6 . . . . . . . . . . . . . . . . . . . . . . . Regen/Repaired (Parts) 5037 | . 149 . 509 . . . 52 . . . 159 295 543 188 217 392 84 . 74 111 . . . 508 664 152 297 . . 214 166 263 Core Remaining (%) 63 | 100 . 13 . . . 41 . 40 . . . . . 41 . 53 . . . . . . 83 . . . 78 . 90 95 . . Volleys Fired 757 | 33 159 50 101 11 . 23 76 45 16 36 24 32 12 5 4 14 8 . 4 25 15 . . 3 13 . 7 2 9 11 15 4 Largest 2 | 2 2 2 2 2 . 2 2 2 2 1 1 1 1 1 1 1 1 . 1 1 1 . . 1 1 . 1 1 1 1 1 1 Hottest 160 | 60 100 60 90 90 . 90 113 160 90 55 81 81 36 36 85 81 85 . 85 81 81 . . 85 85 . 46 120 120 120 120 120 Shots Fired 1106 | 58 232 92 202 21 . 28 127 86 17 36 24 32 12 5 4 14 8 . 4 25 15 . . 3 13 . 7 2 9 11 15 4 Gun 812 | 58 204 81 202 21 . 15 102 83 10 36 . . . . . . . . . . . . . . . . . . . . . . Cannon 115 | . . . . . . . 25 . . . 9 11 . . 4 1 5 . 4 20 8 . . 1 3 . . 1 8 3 8 4 Launcher 124 | . . 11 . . . 13 . 3 7 . 7 9 6 5 . 13 3 . . 5 7 . . 2 10 . 7 1 1 8 6 . Special 55 | . 28 . . . . . . . . . 8 12 6 . . . . . . . . . . . . . . . . . 1 . Kinetic 323 | 33 133 81 56 . . . 12 . 8 . . . . . . . . . . . . . . . . . . . . . . . Thermal 272 | 25 99 . . . . . 72 32 . . 7 . . . 2 . 2 . 4 . . . . 1 3 . . 1 8 3 9 4 Explosive 124 | . . 11 . . . 13 . 3 7 . 7 9 6 5 . 13 3 . . 5 7 . . 2 10 . 7 1 1 8 6 . Electromagnetic 361 | . . . 146 21 . 15 43 51 2 36 2 11 . . 2 1 3 . . 20 8 . . . . . . . . . . . Robot Hit Streak 22 | 8 14 6 17 9 . 12 20 22 5 6 3 8 14 18 20 9 4 . . 15 11 . . 9 18 . 1 2 5 8 17 . Robot Miss Streak 7 | 7 4 7 5 4 . 2 5 3 2 4 2 2 . . . 1 2 . . 1 1 . . . . . 1 . 1 . . . Penetration Max . | . . . . . . . . . . . . . . . . . . . . . . . . . . . . . . . . . Secondary Targets 8 | . . 2 5 1 . . . . . . . . . . . . . . . . . . . . . . . . . . . . Max Gunslinging Chain 1 | . . 1 1 1 . . . . . . . . . . . . . . . . . . . . . . . . . . . . Shots Hit Robots 1626 | 37 87 44 161 15 4 20 125 67 34 23 48 82 69 42 59 77 50 . 38 84 14 13 2 36 48 10 67 54 56 83 56 21 Core Hits 945 | 12 47 55 95 15 . 36 51 44 13 4 32 19 18 14 32 58 34 . 15 35 27 9 1 18 53 6 29 30 29 53 50 11 Critical Kills 5 | . . 1 . . . . 1 . . . . . 1 2 . . . . . . . . . . . . . . . . . . Critical Parts Destroyed 43 | 1 . 1 1 . . . 4 . . . . 11 13 5 7 . . . . . . . . . . . . . . . . . Critical Strikes 123 | 1 . 2 1 . . . 8 . 3 . 2 11 14 7 12 4 5 . 1 9 . 1 . 5 4 1 8 5 5 8 5 1 Burn 2 | . . . . . . . 2 . . . . . . . . . . . . . . . . . . . . . . . . . Destroy 4 | 1 . 2 1 . . . . . . . . . . . . . . . . . . . . . . . . . . . . . Corrupt 1 | . . . . . . . . . . . . . . . . . . . . 1 . . . . . . . . . . . . Smash 45 | . . . . . . . 6 . . . . 11 14 7 7 . . . . . . . . . . . . . . . . . Sever 52 | . . . . . . . . . 3 . 2 . . . 5 4 5 . 1 8 . 1 . 5 4 1 8 5 . . . . Impale 19 | . . . . . . . . . . . . . . . . . . . . . . . . . . . . . 5 8 5 1 Melee Attacks 1618 | . . . . . 4 8 71 3 58 . 97 78 108 64 141 96 69 . 91 66 . 15 11 38 50 46 100 102 67 110 95 30 Impact 362 | . . . . . . 8 69 . . . 1 78 108 61 37 . . . . . . . . . . . . . . . . . Slashing 872 | . . . . . . . 2 . 57 . 96 . . . 104 94 69 . 91 44 . 15 11 37 46 46 100 60 . . . . Piercing 314 | . . . . . . . . . . . . . . . . . . . . . . . . . . . . 42 46 108 91 27 Sneak Attacks 205 | . . . . . 4 2 6 3 10 . 20 8 13 5 10 8 15 . 11 25 . 9 1 1 3 1 1 13 21 6 6 3 Combat Hostiles 30 | . . . . . . . . . . . 1 8 1 2 1 8 1 . 1 2 . . 1 1 . . 1 . . . 1 1 Follow-up Attacks 150 | . . . . . . . . . . . . 12 10 7 6 10 8 . 8 4 . 1 . 4 5 . 17 8 8 24 14 4 Damage Inflicted 78232 | 338 885 1448 3460 493 . 1747 3666 1950 1439 18 2954 3318 4252 2716 2984 5627 3592 . 2095 3557 1279 1217 172 1989 4304 458 3888 3458 2009 6416 5482 1021 Guns 7726 | 338 845 607 2582 251 . 234 1306 1427 118 18 . . . . . . . . . . . . . . . . . . . . . . Cannons 2107 | . . . . . . . 331 . . . 74 203 . . 60 37 102 . . 640 263 . . . 32 . . . 261 . 104 . Explosions 21954 | . . 824 841 207 . 1265 101 523 128 . 852 716 500 899 116 2345 922 . . 930 1016 . . 416 2654 . 1165 227 296 2293 2718 . Melee 46302 | . . . . . . 248 1928 . 1193 . 2028 2399 3752 1817 2808 3245 2568 . 2095 1987 . 1217 172 1573 1618 458 2723 3231 1452 4123 2646 1021 Ramming 105 | . 16 17 37 35 . . . . . . . . . . . . . . . . . . . . . . . . . . . . Kinetic 2123 | 179 474 607 648 . . . 116 . 99 . . . . . . . . . . . . . . . . . . . . . . . Thermal 4350 | 159 395 . 746 207 . 276 916 993 101 . . . . . 116 . 30 . . . . . . . 32 . . . 261 . 118 . Explosive 20307 | . . 824 95 . . 989 . 423 27 . 852 716 500 899 . 2345 922 . . 930 1016 . . 416 2654 . 1165 227 296 2293 2718 . Electromagnetic 5045 | . . . 1934 251 . 234 706 534 19 18 74 203 . . 60 37 72 . . 640 263 . . . . . . . . . . . Impact 11125 | . . . . . . 248 1863 . . . . 2399 3752 1817 1046 . . . . . . . . . . . . . . . . . Slashing 24853 | . . . . . . . 65 . 1193 . 2028 . . . 1762 3245 2568 . 2095 1987 . 1217 172 1573 1618 458 2723 2149 . . . . Piercing 10324 | . . . . . . . . . . . . . . . . . . . . . . . . . . . . 1082 1452 4123 2646 1021 Highest Corruption 9 | . 2 2 . . . 1 . . 7 7 7 2 7 7 1 1 . . 2 1 1 . . . . 4 4 . . 9 . 2 Average Corruption 2 | . 2 2 . . . 1 . . 3 7 2 1 3 7 1 1 . . 1 1 1 . . . . 3 4 . . 5 . 1 Corruption Purged 10 | . . . . . . . . . . . 7 . . . . . . . 2 . 1 . . . . . . . . . . . Corruption Blocked . | . . . . . . . . . . . . . . . . . . . . . . . . . . . . . . . . . Effects 200 | . 7 9 . . . 4 . . 6 7 13 21 29 22 16 7 . . 11 6 . . . . . 6 16 . . 14 . 6 Message Errors 63 | . . 6 . . . 3 . . 1 4 3 3 12 6 4 2 . . 5 . . . . . . 1 4 . . 7 . 2 Matter Fused 55 | . 3 2 . . . 1 . . 1 1 4 10 7 6 7 . . . 2 4 . . . . . 2 3 . . . . 2 Heat Flow Errors 22 | . 2 . . . . . . . 1 . 2 2 3 2 1 . . . 2 . . . . . . . 4 . . 3 . . Energy Discharges 23 | . . 1 . . . . . . 1 1 1 3 4 1 . 3 . . . 1 . . . . . . 4 . . 2 . 1 Parts Rejected 3 | . . . . . . . . . 1 1 . . . . . . . . . . . . . . . . . . . . . 1 Parts Fused 2 | . . . . . . . . . . . . . 1 . . . . . . . . . . . . . . . . 1 . . Data Loss (minor) 23 | . 1 . . . . . . . . . 2 2 2 4 4 2 . . 2 . . . . . . 2 1 . . 1 . . Data Loss (major) 9 | . 1 . . . . . . . 1 . 1 1 . 3 . . . . . 1 . . . . . 1 . . . . . . Overload Shots . | . . . . . . . . . . . . . . . . . . . . . . . . . . . . . . . . . Overflow Damage 6918 | . . 29 18 . . 139 484 8 102 . 390 725 1417 395 522 147 322 . 159 115 41 167 10 9 5 47 188 326 99 513 479 62 Projectiles 36 | . . . . . . . . . . . . . . 17 . . . . . 19 . . . . . . . . . . . . Explosions 902 | . . 29 18 . . 50 15 8 1 . 70 55 6 6 . 35 65 . . . 41 . . . 5 . 127 . 3 170 198 . Melee 5980 | . . . . . . 89 469 . 101 . 320 670 1411 372 522 112 257 . 159 96 . 167 10 9 . 47 61 326 96 343 281 62 Knockbacks 32 | . . . . . . . 2 . . . . 4 9 12 5 . . . . . . . . . . . . . . . . . Impact 30 | . . . . . . . 2 . . . . 4 9 10 5 . . . . . . . . . . . . . . . . . Kinetic . | . . . . . . . . . . . . . . . . . . . . . . . . . . . . . . . . . Secondary 2 | . . . . . . . . . . . . . . 2 . . . . . . . . . . . . . . . . . . Self-Inflicted Damage 350 | . . 24 79 . . 78 . 23 . . . 51 . . . 75 . . . . . . . . 15 . . . 5 . . . Shots 15 | . . 2 3 . . 3 . 1 . . . 2 . . . 2 . . . . . . . . 1 . . . 1 . . . Rammed 14 | . 3 1 4 6 . . . . . . . . . . . . . . . . . . . . . . . . . . . . Targets Rammed 18 | . 4 2 5 7 . . . . . . . . . . . . . . . . . . . . . . . . . . . . Kicked . | . . . . . . . . . . . . . . . . . . . . . . . . . . . . . . . . . Crushed 4 | . 1 1 1 1 . . . . . . . . . . . . . . . . . . . . . . . . . . . . Highest Temperature 368 | 60 275 132 156 93 . 66 357 319 249 86 275 221 254 248 88 40 169 . 118 140 206 . . 38 68 . 274 232 368 212 204 321 Average Temperature 59 | 30 42 31 32 39 . 19 101 95 91 39 60 61 100 92 30 10 61 . 47 48 105 . . 11 23 . 86 44 94 68 21 69 Received Heat Transfer 4858 | . 168 134 291 18 . 72 711 551 18 . 141 162 291 165 219 335 72 . 45 181 4 25 . 165 221 . 173 18 12 108 81 477 Effects 13 | . . . . . . . 2 . . . . . . . . . . . . . . . . . . . . 2 9 . . . Energy Bleed 4 | . . . . . . . 2 . . . . . . . . . . . . . . . . . . . . . 2 . . . Interference 9 | . . . . . . . . . . . . . . . . . . . . . . . . . . . . 2 7 . . . Siege Activations . | . . . . . . . . . . . . . . . . . . . . . . . . . . . . . . . . . Robots Corrupted 47 | . . . . . . . 9 1 . . . 9 11 5 8 . . . . 3 1 . . . . . . . . . . . Combat Hostiles 39 | . . . . . . . 7 1 . . . 9 8 4 6 . . . . 3 1 . . . . . . . . . . . Parts Fried 89 | . . . 6 . . 4 19 5 . . . 12 18 3 15 . . . . 6 1 . . . . . . . . . . . Impact Corruptions 126 | . . . . . . 3 19 . . . . 28 47 13 16 . . . . . . . . . . . . . . . . . Robots Melted . | . . . . . . . . . . . . . . . . . . . . . . . . . . . . . . . . . Combat Hostiles . | . . . . . . . . . . . . . . . . . . . . . . . . . . . . . . . . . Parts Melted 8 | . 2 . . 1 . . 1 1 . . . . . . . . . . . . . . . . . . . 2 1 . . . Heat Transferred 7050 | 350 900 . 750 300 . 300 1963 1880 100 . . . . . 100 . 37 . . . . . . . 37 . . . 222 . 111 . Parts Sabotaged . | . . . . . . . . . . . . . . . . . . . . . . . . . . . . . . . . . Parts Stolen . | . . . . . . . . . . . . . . . . . . . . . . . . . . . . . . . . . Parts Stripped . | . . . . . . . . . . . . . . . . . . . . . . . . . . . . . . . . . Power Chain Reactions 19 | . . . 12 2 . . 2 1 1 . . . . . 1 . . . . . . . . . . . . . . . . . Alert | -11 -10 -10 -9 -9 -9 -8 -8 -8 -7 -7 -7 -7 -7 -7 -6 -6 -5 -5 -5 -5 -5 -5 -5 -4 -4 -4 -4 -3 -3 -2 -1 -1 ------- Run | Yrd Mat Min Mat Min Exi Min Mat Gar Fac Was Fac Gar Fac Gar Fac Gar Fac Was Fac Ext Cet Arc Hub Fac Gar Fac Gar Res Arm Res Acc Com Peak Influence 1601 | 40 519 394 341 183 . 305 452 913 763 258 410 1516 871 1143 667 1471 1601 547 497 878 866 626 664 643 1262 732 977 710 505 876 769 636 Initial 795 | . 26 202 74 132 . . 85 247 478 228 180 286 795 475 599 466 772 547 382 132 491 346 57 285 450 662 424 549 142 183 440 492 Average 483 | 18 333 289 162 96 . 197 240 609 639 256 217 853 589 905 500 1177 1211 547 316 449 714 403 396 473 926 634 737 406 321 597 566 445 Maximum Alert Level 5 | . 2 1 1 . . 1 2 3 3 1 2 4 3 4 2 4 5 2 2 3 3 2 2 2 4 3 3 3 2 3 3 2 Low Security (%) 17 | 100 14 21 60 100 . 65 39 . . . 37 . . . . . . . 9 4 . 11 36 . . . . . 27 15 . . Level 1 29 | . 58 78 39 . . 34 46 21 . 100 54 11 10 . 13 . . . 77 49 . 30 . 23 . . . 58 34 9 11 43 Level 2 35 | . 27 . . . . . 13 43 91 . 7 27 78 27 86 10 . 100 13 38 62 58 62 76 26 89 47 41 38 25 64 56 Level 3 10 | . . . . . . . . 34 8 . . 34 10 69 . 15 32 . . 7 37 . . . 45 10 52 . . 49 23 . Level 4 6 | . . . . . . . . . . . . 27 . 2 . 74 67 . . . . . . . 28 . . . . . . . Level 5 . | . . . . . . . . . . . . . . . . . . . . . . . . . . . . . . . . . High Security . | . . . . . . . . . . . . . . . . . . . . . . . . . . . . . . . . . Max Security . | . . . . . . . . . . . . . . . . . . . . . . . . . . . . . . . . . Squads Dispatched 82 | . 3 . 2 . . . 1 . 7 . 6 . 9 . 9 . 10 . 4 1 . . 6 2 . 3 . 6 2 4 6 1 Investigation 29 | . 2 . 2 . . . . . 4 . . . 2 . 4 . 4 . 1 1 . . 2 1 . 2 . 2 1 . 1 . Extermination 17 | . . . . . . . . . 1 . 4 . 3 . 2 . . . . . . . . . . 1 . . 1 3 1 1 Reinforcement 24 | . 1 . . . . . 1 . 2 . 2 . 1 . 2 . 4 . 3 . . . 2 . . . . 4 . 1 1 . Assault 5 | . . . . . . . . . . . . . . . 1 . 2 . . . . . 2 . . . . . . . . . Garrison 7 | . . . . . . . . . . . . . 3 . . . . . . . . . . 1 . . . . . . 3 . Intercept . | . . . . . . . . . . . . . . . . . . . . . . . . . . . . . . . . . Searches Triggered . | . . . . . . . . . . . . . . . . . . . . . . . . . . . . . . . . . Construction Impeded 3 | . . . . . . . 1 . . . . . . . . . 1 . 1 . . . . . . . . . . . . . Haulers Reinforced 12 | . . . . . . . . . 1 . 2 . 1 . . . 1 . 1 . . . . . . . . 4 . 1 1 . Active Scanning Responses . | . . . . . . . . . . . . . . . . . . . . . . . . . . . . . . . . . Cargo Convoy Interrupts . | . . . . . . . . . . . . . . . . . . . . . . . . . . . . . . . . . Stealth | -11 -10 -10 -9 -9 -9 -8 -8 -8 -7 -7 -7 -7 -7 -7 -6 -6 -5 -5 -5 -5 -5 -5 -5 -4 -4 -4 -4 -3 -3 -2 -1 -1 --------- Run | Yrd Mat Min Mat Min Exi Min Mat Gar Fac Was Fac Gar Fac Gar Fac Gar Fac Was Fac Ext Cet Arc Hub Fac Gar Fac Gar Res Arm Res Acc Com Distress Signals 45 | . 1 . 2 . . . 5 . 6 . 2 . . . 6 . 2 . 1 1 2 . 1 . . 1 . 3 10 . 2 . Communications Jammed 140 | . . . . . . . . . . . . . . . . . . . . . . 1 27 . . 2 . . 2 30 . 78 Distress Signals 139 | . . . . . . . . . . . . . . . . . . . . . . 1 26 . . 2 . . 2 30 . 78 Times Spotted 722 | . 27 30 47 7 . 16 39 18 36 8 25 35 32 18 45 26 25 . 16 27 7 3 16 12 29 5 18 25 30 42 32 26 Peak Tracking Total 15 | . 4 15 4 4 . 7 3 6 11 6 5 4 4 4 6 5 4 . 5 4 5 2 14 3 5 2 5 6 9 5 9 7 Tactical Retreats 74 | . . 1 3 1 . . 6 . 8 2 2 9 1 1 9 . 1 . 5 . . . . 1 2 1 . 5 5 2 2 7 Traps | -11 -10 -10 -9 -9 -9 -8 -8 -8 -7 -7 -7 -7 -7 -7 -6 -6 -5 -5 -5 -5 -5 -5 -5 -4 -4 -4 -4 -3 -3 -2 -1 -1 ------- Run | Yrd Mat Min Mat Min Exi Min Mat Gar Fac Was Fac Gar Fac Gar Fac Gar Fac Was Fac Ext Cet Arc Hub Fac Gar Fac Gar Res Arm Res Acc Com Traps Triggered 47 | . 1 . . . . . . 4 3 . 4 4 1 2 5 3 1 . 5 4 . . . . 2 . 2 2 3 . 1 . Indirectly . | . . . . . . . . . . . . . . . . . . . . . . . . . . . . . . . . . Trap Hack Attempts 6 | . . . . . . . . . . . . . . . 4 2 . . . . . . . . . . . . . . . . Triggered . | . . . . . . . . . . . . . . . . . . . . . . . . . . . . . . . . . Disarmed 2 | . . . . . . . . . . . . . . . 1 1 . . . . . . . . . . . . . . . . Reprogrammed . | . . . . . . . . . . . . . . . . . . . . . . . . . . . . . . . . . Reused . | . . . . . . . . . . . . . . . . . . . . . . . . . . . . . . . . . Traps Extracted . | . . . . . . . . . . . . . . . . . . . . . . . . . . . . . . . . . Installed . | . . . . . . . . . . . . . . . . . . . . . . . . . . . . . . . . . Triggered . | . . . . . . . . . . . . . . . . . . . . . . . . . . . . . . . . . Objects Rigged 4 | . . . 4 . . . . . . . . . . . . . . . . . . . . . . . . . . . . . Exploded 2 | . . . 2 . . . . . . . . . . . . . . . . . . . . . . . . . . . . . Machines | -11 -10 -10 -9 -9 -9 -8 -8 -8 -7 -7 -7 -7 -7 -7 -6 -6 -5 -5 -5 -5 -5 -5 -5 -4 -4 -4 -4 -3 -3 -2 -1 -1 ---------- Run | Yrd Mat Min Mat Min Exi Min Mat Gar Fac Was Fac Gar Fac Gar Fac Gar Fac Was Fac Ext Cet Arc Hub Fac Gar Fac Gar Res Arm Res Acc Com Machines Disabled 113 | . 22 6 5 . . 9 . 5 2 . 3 10 2 4 1 4 17 . . 2 1 . 4 1 4 . 4 . 4 . 3 . Max in Single Turn 6 | . 2 1 2 . . 2 . 1 1 . 1 1 2 1 1 1 6 . . 1 1 . . 1 1 . 1 . 1 . 1 . Garrison Access 20 | . . . . . . . . . 1 . 2 . 1 . 1 . 2 . 3 . . . 2 . . . . 3 . 1 4 . Garrison Relay 18 | . . . . . . . . 4 . . . 4 . 2 . 4 . . . . . . . . 3 . 1 . . . . . Network Hub 2 | . . . . . . . . . . . . . . . . . . . . . . . 2 . . . . . . . . . Machines Repaired . | . . . . . . . . . . . . . . . . . . . . . . . . . . . . . . . . . Machines Dismantled 5 | . . . . . . . . . . . . . . . . . . . . 2 1 . . . . . . . . . 2 . Machines Sabotaged 1 | . . . . . . . . . . . . . . . . . . . . . . . 1 . . . . . . . . . Overloaded Fab Kills . | . . . . . . . . . . . . . . . . . . . . . . . . . . . . . . . . . Hacking | -11 -10 -10 -9 -9 -9 -8 -8 -8 -7 -7 -7 -7 -7 -7 -6 -6 -5 -5 -5 -5 -5 -5 -5 -4 -4 -4 -4 -3 -3 -2 -1 -1 --------- Run | Yrd Mat Min Mat Min Exi Min Mat Gar Fac Was Fac Gar Fac Gar Fac Gar Fac Was Fac Ext Cet Arc Hub Fac Gar Fac Gar Res Arm Res Acc Com Machines Accessed 216 | . 9 . 17 . 5 . 10 2 17 . 29 2 16 1 21 2 7 . 20 2 1 . 4 4 3 8 1 11 7 4 11 2 Terminals 125 | . 6 . 11 . . . 7 2 9 . 17 2 10 1 9 2 2 . 13 2 1 . 3 2 3 2 1 4 6 2 6 2 Fabricators 23 | . . . . . . . . . 3 . 2 . 2 . 5 . 2 . 2 . . . . 1 . 3 . 1 1 1 . . Repair Stations 16 | . 1 . 2 . . . 1 . 1 . 4 . 1 . 2 . . . 2 . . . . . . 1 . 1 . . . . Recycling Units 9 | . 2 . 2 . . . . . 2 . 1 . . . 1 . 1 . . . . . . . . . . . . . . . Scanalyzers 10 | . . . 2 . . . 1 . 1 . 2 . . . 1 . . . . . . . . . . 1 . 2 . . . . Garrison Access 28 | . . . . . . . 1 . 1 . 3 . 3 . 3 . 2 . 3 . . . 1 1 . 1 . 3 . 1 5 . Total Hacks 615 | . 20 . 71 . 50 . 34 3 41 . 88 6 41 1 54 2 11 . 52 3 1 . 5 9 4 24 2 32 26 7 24 4 Successful 346 | . 9 . 46 . 50 . 20 . 20 . 46 2 23 . 39 2 7 . 23 1 . . 2 5 2 12 1 9 10 2 13 2 Failed 268 | . 11 . 24 . . . 14 3 21 . 42 4 18 1 15 . 4 . 29 2 1 . 3 4 2 12 1 23 16 5 11 2 Catastrophic 68 | . . . 2 . . . 1 1 6 . 13 2 5 . 3 . 1 . 10 . 1 . 1 1 1 4 1 5 5 2 3 . Database Lockouts 1 | . . . 1 . . . . . . . . . . . . . . . . . . . . . . . . . . . . . Manual 273 | . 16 . 37 . 1 . 17 . 29 . 38 . 20 . 29 . 4 . 25 2 1 . 4 5 . 14 . 8 10 4 6 3 Terminals 334 | . 14 . 44 . . . 23 3 24 . 49 6 23 1 23 2 2 . 33 3 1 . 4 5 4 9 2 16 20 5 14 4 Fabricators 82 | . . . . . . . . . 8 . 11 . 8 . 15 . 5 . 12 . . . . 3 . 9 . 4 6 1 . . Repair Stations 61 | . 4 . 22 . . . 3 . 3 . 10 . 4 . 7 . . . 4 . . . . . . 1 . 3 . . . . Recycling Units 11 | . 2 . 2 . . . . . 2 . 2 . . . 2 . 1 . . . . . . . . . . . . . . . Scanalyzers 36 | . . . 3 . . . 7 . 2 . 11 . . . 3 . . . . . . . . . . 4 . 6 . . . . Garrison Access 41 | . . . . . . . 1 . 2 . 5 . 6 . 4 . 3 . 3 . . . 1 1 . 1 . 3 . 1 10 . Terminal Hacks 113 | . 1 . 12 . 50 . 5 . 2 . 9 2 3 . 5 2 . . 5 1 . . . . 2 . 1 3 5 1 3 1 Record 49 | . . . . . 49 . . . . . . . . . . . . . . . . . . . . . . . . . . . Part Schematic 4 | . 1 . 1 . . . . . 1 . 1 . . . . . . . . . . . . . . . . . . . . . Robot Schematic 5 | . . . 1 . . . 2 . 1 . . . . . 1 . . . . . . . . . . . . . . . . . Prototype ID Bank 7 | . . . 3 . . . 1 . . . 1 . . . . . . . . . . . . . . . . 1 1 . . . Open Door 8 | . . . . . . . . . . . . 1 . . . 1 . . 1 1 . . . . . . . . . . 3 1 Level Access Points 1 | . . . 1 . . . . . . . . . . . . . . . . . . . . . . . . . . . . . Branch Access Points 4 | . . . 1 . . . . . . . . . . . . . . . 1 . . . . . . . . 1 . 1 . . Emergency Access Points 2 | . . . . . . . . . . . . . . . . 1 . . . . . . . . . . 1 . . . . . Terminal Index 4 | . . . 1 . . . . . . . . . . . 1 . . . 1 . . . . . . . . . 1 . . . Fabricator Index 2 | . . . . . . . . . . . 1 . . . 1 . . . . . . . . . . . . . . . . . Scanalyzer Index 2 | . . . . . . . 1 . . . . . . . . . . . . . . . . . . . . . 1 . . . Garrison Index 2 | . . . . . . . . . . . 1 . 1 . . . . . . . . . . . . . . . . . . . Unreport Threat 12 | . . . 4 . . . . . . . . . 2 . 2 . . . 2 . . . . . . . . 1 1 . . . Locate Traps 4 | . . . . . . . . . . . 3 . . . . . . . . . . . . . . . . . 1 . . . Recall Extermination 1 | . . . . . . . . . . . 1 . . . . . . . . . . . . . . . . . . . . . Hauler Manifests 2 | . . . . . . . 1 . . . 1 . . . . . . . . . . . . . . . . . . . . . Patrol Navigation 1 | . . . . . . . . . . . . . . . . . . . . . . . . . 1 . . . . . . . Security Stations 2 | . . . . . . . . . . . . 1 . . . . . . . . . . . . 1 . . . . . . . Derelict Proto ID Bank 1 | . . . . . 1 . . . . . . . . . . . . . . . . . . . . . . . . . . . Fabricator Hacks 42 | . . . . . . . . . 3 . 8 . 3 . 9 . 2 . 8 . . . . 2 . 3 . . 4 . . . Load Schematic 26 | . . . . . . . . . 3 . 4 . 2 . 6 . 2 . 4 . . . . 1 . 2 . . 2 . . . Build 16 | . . . . . . . . . . . 4 . 1 . 3 . . . 4 . . . . 1 . 1 . . 2 . . . Repair Station Hacks 47 | . 4 . 22 . . . 2 . 2 . 5 . 4 . 6 . . . 2 . . . . . . . . . . . . . Scan Component 25 | . 2 . 11 . . . 1 . 1 . 3 . 2 . 3 . . . 2 . . . . . . . . . . . . . Repair 22 | . 2 . 11 . . . 1 . 1 . 2 . 2 . 3 . . . . . . . . . . . . . . . . . Recycling Unit Hacks . | . . . . . . . . . . . . . . . . . . . . . . . . . . . . . . . . . Scanalyzer 24 | . . . 1 . . . 5 . 1 . 8 . . . 2 . . . . . . . . . . 4 . 3 . . . . Insert Component 13 | . . . 1 . . . 2 . 1 . 4 . . . 1 . . . . . . . . . . 1 . 3 . . . . Analyze 11 | . . . . . . . 3 . . . 4 . . . 1 . . . . . . . . . . 3 . . . . . . Garrison Access Hacks 40 | . . . . . . . 1 . 2 . 5 . 6 . 4 . 3 . 3 . . . 1 1 . 1 . 3 . 1 9 . Unlock Access 8 | . . . . . . . 1 . . . 1 . 2 . 1 . . . . . . . 1 1 . 1 . . . . . . Seal Access 18 | . . . . . . . . . 1 . 2 . 1 . 1 . 2 . 3 . . . . . . . . 3 . 1 4 . Coupler Status 14 | . . . . . . . . . 1 . 2 . 3 . 2 . 1 . . . . . . . . . . . . . 5 . Unauthorized Hacks 80 | . 4 . 11 . . . 7 . 10 . 11 . 7 . 13 . 2 . 5 . . . 1 2 . 4 . . 1 . 1 1 Terminals 54 | . 2 . 9 . . . 7 . 6 . 8 . 4 . 8 . . . 3 . . . 1 2 . 2 . . 1 . . 1 Assimilate 3 | . . . . . . . . . . . . . 1 . 1 . . . 1 . . . . . . . . . . . . . Botnet 21 | . 2 . 2 . . . 2 . 2 . 2 . 2 . 2 . . . 2 . . . . 1 . 2 . . 1 . . 1 Detonate 1 | . . . 1 . . . . . . . . . . . . . . . . . . . . . . . . . . . . . Operators 2 | . . . 1 . . . . . . . 1 . . . . . . . . . . . . . . . . . . . . . Skim 26 | . . . 5 . . . 5 . 4 . 5 . 1 . 5 . . . . . . . . 1 . . . . . . . . Sabotage 1 | . . . . . . . . . . . . . . . . . . . . . . . 1 . . . . . . . . . Fabricators 16 | . . . . . . . . . 2 . 1 . 3 . 4 . 2 . 2 . . . . . . 2 . . . . . . Prioritize 5 | . . . . . . . . . . . 1 . 1 . 1 . . . 1 . . . . . . 1 . . . . . . Liberate 1 | . . . . . . . . . . . . . . . . . . . 1 . . . . . . . . . . . . . Haulers 1 | . . . . . . . . . . . . . 1 . . . . . . . . . . . . . . . . . . . Recompile 9 | . . . . . . . . . 2 . . . 1 . 3 . 2 . . . . . . . . 1 . . . . . . Repair Stations 1 | . . . . . . . . . . . 1 . . . . . . . . . . . . . . . . . . . . . Mechanics 1 | . . . . . . . . . . . 1 . . . . . . . . . . . . . . . . . . . . . Recycling Units 8 | . 2 . 2 . . . . . 2 . 1 . . . 1 . . . . . . . . . . . . . . . . . Recyclers 3 | . . . . . . . . . 1 . 1 . . . 1 . . . . . . . . . . . . . . . . . Tunnel 5 | . 2 . 2 . . . . . 1 . . . . . . . . . . . . . . . . . . . . . . . Scanalyzers . | . . . . . . . . . . . . . . . . . . . . . . . . . . . . . . . . . Garrison Access 1 | . . . . . . . . . . . . . . . . . . . . . . . . . . . . . . . 1 . Eject 1 | . . . . . . . . . . . . . . . . . . . . . . . . . . . . . . . 1 . Data Cores Recovered 3 | . . . 1 . . . . . . . . . . . . . 1 . . . . . . . . . . 1 . . . . Used 1 | . . . 1 . . . . . . . . . . . . . . . . . . . . . . . . . . . . . Hacking Detections 160 | . 6 . 15 . . . 9 2 11 . 25 1 14 1 16 1 6 . 15 2 1 . 3 3 1 5 1 6 7 1 7 1 Full Trace Events 9 | . . . . . . . . . 1 . . 1 1 . 1 . . . 1 . . . 1 1 . 1 . . 1 . . . Feedback Events 1 | . . . . . . . . . . . . . . . . . . . 1 . . . . . . . . . . . . . Corruption 1 | . . . . . . . . . . . . . . . . . . . 1 . . . . . . . . . . . . . Feedback Blocked . | . . . . . . . . . . . . . . . . . . . . . . . . . . . . . . . . . Robot Schematics Acquired 5 | . . . 1 . . . 2 . 1 . . . . . 1 . . . . . . . . . . . . . . . . . Robots Built 9 | . . . . . . . . . . . 2 . 1 . 2 . . . 2 . . . . 1 . 1 . . . . . . Authchips 8 | . . . . . . . . . . . 2 . 1 . 2 . . . 2 . . . . . . 1 . . . . . . Time 356 | . . . . . . . . . . . 53 . 29 . 62 . . . 125 . . . . 58 . 29 . . . . . . Total Robot Build Rating 28 | . . . . . . . . . . . 5 . 3 . 7 . . . 7 . . . . 3 . 3 . . . . . . Part Schematics Acquired 12 | . 1 . 1 . . . 2 . 1 . 5 . . . 1 . . . . . . . . . . 1 . . . . . . Parts Built 12 | . . . . . . . . . . . 4 . . . 2 . . . 2 . . . . . . . . . 4 . . . Authchips 7 | . . . . . . . . . . . 2 . . . 1 . . . 2 . . . . . . . . . 2 . . . Time 339 | . . . . . . . . . . . 65 . . . 21 . . . 201 . . . . . . . . . 52 . . . Total Part Build Rating 48 | . . . . . . . . . . . 18 . . . 8 . . . 8 . . . . . . . . . 14 . . . Parts Repaired 22 | . 2 . 11 . . . 1 . 1 . 2 . 2 . 3 . . . . . . . . . . . . . . . . . Time 988 | . 52 . 503 . . . 32 . 136 . 41 . 114 . 110 . . . . . . . . . . . . . . . . . Parts Recycled . | . . . . . . . . . . . . . . . . . . . . . . . . . . . . . . . . . Recycled Matter . | . . . . . . . . . . . . . . . . . . . . . . . . . . . . . . . . . Retrieved Matter . | . . . . . . . . . . . . . . . . . . . . . . . . . . . . . . . . . Retrieved Components . | . . . . . . . . . . . . . . . . . . . . . . . . . . . . . . . . . Parts Scanalyzed 8 | . . . 1 . . . 1 . 1 . 3 . . . 1 . . . . . . . . . . 1 . . . . . . Part Schematics Acquired 8 | . . . . . . . 2 . . . 4 . . . 1 . . . . . . . . . . 1 . . . . . . Parts Damaged 3 | . . . . . . . 1 . . . 1 . . . . . . . . . . . . . . 1 . . . . . . Bothacking | -11 -10 -10 -9 -9 -9 -8 -8 -8 -7 -7 -7 -7 -7 -7 -6 -6 -5 -5 -5 -5 -5 -5 -5 -4 -4 -4 -4 -3 -3 -2 -1 -1 ------------ Run | Yrd Mat Min Mat Min Exi Min Mat Gar Fac Was Fac Gar Fac Gar Fac Gar Fac Was Fac Ext Cet Arc Hub Fac Gar Fac Gar Res Arm Res Acc Com Used RIF Installer 8 | . . . . . . . . 1 . . . 1 . 1 . 2 . . . . . . . . 1 . 2 . . . . . Command Fork 1 | . . . . . . . . . . . . . . 1 . . . . . . . . . . . . . . . . . . Threat Obfuscator 1 | . . . . . . . . . . . . . . . . . . . . . . . . . 1 . . . . . . . Signal Jammer 1 | . . . . . . . . . . . . . . . . . . . . . . . . . . . 1 . . . . . Zone Cloak 1 | . . . . . . . . . . . . . . . . 1 . . . . . . . . . . . . . . . . Watcher Feeds 1 | . . . . . . . . . . . . . . . . . . . . . . . . . . . 1 . . . . . Patrol Navigation 1 | . . . . . . . . . . . . 1 . . . . . . . . . . . . . . . . . . . . Alert ID Control 1 | . . . . . . . . . . . . . . . . 1 . . . . . . . . . . . . . . . . Robots Hacked 22 | . . . . . 4 . . . . . 3 5 2 . . 1 . . . 1 . . . . 2 . . . . 1 2 1 Non-combat 13 | . . . . . 3 . . . . . 3 . 2 . . . . . . 1 . . . . . . . . . 1 2 1 Combat 9 | . . . . . 1 . . . . . . 5 . . . 1 . . . . . . . . 2 . . . . . . . Robot Hacks Applied 31 | . . . . . 4 . . . . . 3 8 4 . . 2 . . . 3 . . . . 2 . . . . 1 3 1 parse_system 12 | . . . . . 4 . . . . . 1 3 . . . 1 . . . 3 . . . . . . . . . . . . purge_threat 3 | . . . . . . . . . . . . . 1 . . . . . . . . . . . . . . . . . 2 . block_reporting 2 | . . . . . . . . . . . . . 2 . . . . . . . . . . . . . . . . . . . amplify_resonance 1 | . . . . . . . . . . . . 1 . . . . . . . . . . . . . . . . . . . . reboot_system 1 | . . . . . . . . . . . . 1 . . . . . . . . . . . . . . . . . . . . overwrite_iff 3 | . . . . . . . . . . . . 2 . . . 1 . . . . . . . . . . . . . . . . formatsys_low 5 | . . . . . . . . . . . 1 . 1 . . . . . . . . . . . . . . . . 1 1 1 formatsys_high 4 | . . . . . . . . . . . 1 1 . . . . . . . . . . . . 2 . . . . . . . Relay Couplers Released 76 | . . . . . . . . 16 . . 1 14 . 9 . 17 . . . . . . 2 . 10 . 3 . . . 4 . Ejected 4 | . . . . . . . . . . . . . . . . . . . . . . . . . . . . . . . 4 . Machine Destruction 72 | . . . . . . . . 16 . . 1 14 . 9 . 17 . . . . . . 2 . 10 . 3 . . . . . Attached 10 | . . . . . . . . . . . 1 3 1 . . 1 . . . . . . . . 1 . . . . 1 1 1 Fabnet Peak Effective % . | . . . . . . . . . . . . . . . . . . . . . . . . . . . . . . . . . Robots Rewired 30 | . . . . . . . . 3 . . . . . 2 . 3 . . . 11 . . . . . . . . 11 . . . Allies Hacked 2 | . . . . . . . . . . . . . 1 . . . . . . . . . . . . . . 1 . . . . Hacks Repelled . | . . . . . . . . . . . . . . . . . . . . . . . . . . . . . . . . . Allies | -11 -10 -10 -9 -9 -9 -8 -8 -8 -7 -7 -7 -7 -7 -7 -6 -6 -5 -5 -5 -5 -5 -5 -5 -4 -4 -4 -4 -3 -3 -2 -1 -1 -------- Run | Yrd Mat Min Mat Min Exi Min Mat Gar Fac Was Fac Gar Fac Gar Fac Gar Fac Was Fac Ext Cet Arc Hub Fac Gar Fac Gar Res Arm Res Acc Com Total Allies 76 | . . 3 . . . . . 3 . . 4 5 3 2 3 5 . . 5 14 5 . . 1 3 1 . . 16 1 1 1 Largest Group 17 | . . 3 . . . . . 3 2 . 2 3 3 5 3 4 4 . 4 16 17 16 15 1 4 1 1 1 14 1 1 1 Highest-Rated Group 968 | . . 72 . . . . . 63 42 . 50 85 56 126 89 149 149 . 145 601 968 926 769 23 156 23 23 23 741 36 44 36 Highest-Rated Ally 159 | . . 31 . . . . . 21 21 . 27 31 26 39 40 51 51 . 41 159 159 153 96 23 47 23 23 23 65 36 44 36 Total Orders 117 | . . . . . . . . . . . 1 12 15 15 9 17 1 . 1 3 . . . 8 18 1 8 . 1 1 2 4 STAY 46 | . . . . . . . . . . . . 5 3 8 2 9 . . . . . . . 2 9 . 4 . 1 . 1 2 ROAM 3 | . . . . . . . . . . . . . 2 . . . . . . 1 . . . . . . . . . . . . FOLLOW 21 | . . . . . . . . . . . . 2 5 3 4 2 . . . 1 . . . 2 1 . 1 . . . . . AID 46 | . . . . . . . . . . . 1 5 5 4 2 6 1 . 1 1 . . . 4 8 1 3 . . 1 1 2 EXPLORE 1 | . . . . . . . . . . . . . . . 1 . . . . . . . . . . . . . . . . . Ally Attacks 490 | . . 15 . . . . . 16 25 . . 24 . 32 . . 34 . 16 53 30 17 105 . 11 . . . 112 . . . Total Damage 13593 | . . 123 . . . . . 392 381 . . 364 . 518 . . 1107 . 588 1134 638 358 4802 . 332 . . . 2856 . . . Kills 82 | . . 1 . . . . . 4 4 . . 2 . 5 . . 15 . 2 9 7 3 16 . 2 . . . 12 . . . Allies Corrupted 3 | . . . . . . . . . . . . . . . 1 . . . . . . . 2 . . . . . . . . . Allies Melted . | . . . . . . . . . . . . . . . . . . . . . . . . . . . . . . . . . Intel | -11 -10 -10 -9 -9 -9 -8 -8 -8 -7 -7 -7 -7 -7 -7 -6 -6 -5 -5 -5 -5 -5 -5 -5 -4 -4 -4 -4 -3 -3 -2 -1 -1 ------- Run | Yrd Mat Min Mat Min Exi Min Mat Gar Fac Was Fac Gar Fac Gar Fac Gar Fac Was Fac Ext Cet Arc Hub Fac Gar Fac Gar Res Arm Res Acc Com Robot Analysis Total . | . . . . . . . . . . . . . . . . . . . . . . . . . . . . . . . . . Derelict Logs Recovered 2 | . . 1 . 1 . . . . . . . . . . . . . . . . . . . . . . . . . . . . Drone Launches 1 | . . . . . . . . . . . . . . . 1 . . . . . . . . . . . . . . . . . Drone Recoveries . | . . . . . . . . . . . . . . . . . . . . . . . . . . . . . . . . . Exploration | -11 -10 -10 -9 -9 -9 -8 -8 -8 -7 -7 -7 -7 -7 -7 -6 -6 -5 -5 -5 -5 -5 -5 -5 -4 -4 -4 -4 -3 -3 -2 -1 -1 ------------- Run | Yrd Mat Min Mat Min Exi Min Mat Gar Fac Was Fac Gar Fac Gar Fac Gar Fac Was Fac Ext Cet Arc Hub Fac Gar Fac Gar Res Arm Res Acc Com Turns Passed 35661 | 186 1596 805 2592 922 473 1171 2065 1066 1383 282 2282 1346 1905 682 2101 1167 1003 147 1388 771 311 1355 220 361 985 747 675 2130 824 842 1160 718 Spaces Moved 36605 | 87 663 403 1046 543 291 677 823 541 1999 337 2970 1374 2644 932 2543 1261 1267 271 2002 679 248 189 174 402 1333 1032 838 3974 1177 1025 1723 1137 Core 251 | 2 . . . . . . . . . . . . . . . . 4 . . . . . . . . . . . . . . 245 Treads 4634 | . 502 390 996 543 291 677 694 541 . . . . . . . . . . . . . . . . . . . . . . . . Legs 149 | . 149 . . . . . . . . . . . . . . . . . . . . . . . . . . . . . . . Wheels 349 | 85 12 13 50 . . . 129 . . . . . . . 60 . . . . . . . . . . . . . . . . . Hover 30810 | . . . . . . . . . 1999 337 2970 1374 2644 932 2483 1261 1263 271 2002 679 248 189 174 402 1333 1032 838 3974 1177 1025 1723 480 Flight 412 | . . . . . . . . . . . . . . . . . . . . . . . . . . . . . . . . 412 Fastest Speed 27 | 50 90 125 110 160 160 160 125 163 54 54 54 47 47 54 42 43 50 50 43 43 43 43 43 45 34 37 34 27 31 31 38 38 Average Speed 64 | 88 149 160 158 160 160 160 156 163 54 54 54 59 53 54 53 51 53 50 49 49 47 43 51 45 47 54 48 41 42 41 43 45 Slowest Speed 240 | 90 160 240 160 160 160 160 163 163 74 54 54 120 120 54 130 106 200 50 105 111 111 43 52 45 111 109 111 45 60 123 48 136 Overloaded Moves 811 | . . . . . . . . . . . . 7 103 . 115 360 . . . . . . . . 9 4 49 19 8 53 58 26 Propulsion Burnouts . | . . . . . . . . . . . . . . . . . . . . . . . . . . . . . . . . . Robots Hopped 8 | . . . . . . . . . . . . . . . . . . . . 1 . . . . . . . . . . . 7 Cave-ins Triggered . | . . . . . . . . . . . . . . . . . . . . . . . . . . . . . . . . . Exploration Rate (%) 63 | 5 99 92 96 97 72 97 56 76 49 99 68 70 55 78 53 97 28 97 49 72 67 96 24 4 72 27 57 79 56 34 47 30 Regions Visited 32 Branch Regions 10 Pre-discovered Areas 13 | . 2 1 3 . 1 . 3 . 1 . 1 . . . 1 . . . . . . . . . . . . . . . . . Known Exits Taken 12 | . . . 1 . . 1 1 . . . 1 . 1 . 1 . . . 1 1 . . 1 1 . 1 . 1 . . . . Unknown Exits Taken 10 | 1 1 1 . 1 1 . . . . . . . . . . . . . . . 1 1 . . . . . . 1 1 1 . Scrap Searched 4 | . . 1 . 1 . 2 . . . . . . . . . . . . . . . . . . . . . . . . . . Spaces Dug 411 | . 3 . . . . 1 3 . 78 . 49 13 25 . 49 1 16 . 37 1 . . 5 1 6 23 . 33 15 17 30 5 Terrain Destroyed 1444 | . 93 56 123 11 . 70 13 16 138 . 80 82 54 4 53 91 30 . 37 41 77 . 5 12 62 23 57 46 15 81 69 5 Melee 308 | . . . . . . 1 3 . 26 . 45 . 25 . 47 1 16 . 33 1 . . 5 1 1 23 . 32 6 14 24 4 Projectile 25 | . 3 . . . . . . . . . 4 . . . 2 . 1 . 4 . . . . . . . . 1 . 3 6 1 AOE 1111 | . 90 56 123 11 . 69 10 16 112 . 31 82 29 4 4 90 13 . . 40 77 . . 11 61 . 57 13 9 64 39 . Terrain Rammed . | . . . . . . . . . . . . . . . . . . . . . . . . . . . . . . . . . Walls Destroyed . | . . . . . . . . . . . . . . . . . . . . . . . . . . . . . . . . . Machines Disabled . | . . . . . . . . . . . . . . . . . . . . . . . . . . . . . . . . . Actions | -11 -10 -10 -9 -9 -9 -8 -8 -8 -7 -7 -7 -7 -7 -7 -6 -6 -5 -5 -5 -5 -5 -5 -5 -4 -4 -4 -4 -3 -3 -2 -1 -1 --------- Run | Yrd Mat Min Mat Min Exi Min Mat Gar Fac Was Fac Gar Fac Gar Fac Gar Fac Was Fac Ext Cet Arc Hub Fac Gar Fac Gar Res Arm Res Acc Com Total 45932 | 140 982 483 1783 572 298 725 1397 631 2195 400 3461 1809 3003 1070 3141 1699 1512 281 2290 1052 413 1457 295 533 1648 1162 1042 4387 1461 1318 1999 1293 Wait 5762 | 6 86 11 569 8 . . 366 15 56 22 295 253 212 49 368 212 104 . 145 216 128 1250 108 81 198 56 89 255 178 173 146 107 Move 36559 | 86 662 402 1045 542 290 676 822 540 1999 336 2970 1373 2643 931 2542 1260 1267 270 2001 676 247 188 173 402 1331 1032 837 3973 1175 1024 1721 1123 Hop 8 | . . . . . . . . . . . . . . . . . . . . 1 . . . . . . . . . . . 7 Pick Up 180 | 8 17 5 15 1 2 1 11 6 10 1 10 3 7 2 13 8 13 1 4 2 3 4 2 1 3 7 2 7 7 1 2 1 Fast Attach 137 | 7 2 1 8 . . 1 9 1 8 1 15 3 1 . 16 3 14 3 3 3 1 . . . . 2 2 9 12 3 3 6 Attach 90 | . 1 2 6 . . 3 5 . 4 1 5 . 3 2 12 4 1 . 7 . 3 . 1 3 4 2 4 1 1 4 3 8 Detach 42 | . . . 1 . . 1 3 . 5 . 3 1 . . 7 3 1 1 2 . 2 . . . 4 . 1 1 . 1 1 4 Swap 488 | . 38 6 21 2 . 10 20 13 28 . 37 30 27 5 24 16 21 3 22 18 5 . 2 11 10 18 4 36 15 27 15 4 Drop 185 | . 13 4 12 1 2 2 14 7 11 . 5 1 9 1 15 9 26 3 4 . 1 3 2 . . 7 2 19 6 . . 6 Fire 757 | 33 159 50 101 11 . 23 76 45 16 36 24 32 12 5 4 14 8 . 4 25 15 . . 3 13 . 7 2 9 11 15 4 Melee 1340 | . . . . . 4 8 71 3 58 . 97 64 89 51 118 80 57 . 72 60 . 12 7 32 44 38 72 82 57 74 67 23 Ram . | . . . . . . . . . . . . . . . . . . . . . . . . . . . . . . . . . Kick . | . . . . . . . . . . . . . . . . . . . . . . . . . . . . . . . . . Crush 18 | . 4 2 5 7 . . . . . . . . . . . . . . . . . . . . . . . . . . . . Escape Stasis 242 | . . . . . . . . . . . . 49 . 24 18 21 . . 26 35 . . . . 41 . 22 2 1 . 3 . Rewire 71 | . . . . . . . . 1 . 3 . . . . . 67 . . . . . . . . . . . . . . . . Trap 6 | . . . . . . . . . . . . . . . 4 2 . . . . . . . . . . . . . . . . Miscellaneous 47 | . . . . . . . . . . . . . . . . . . . . 16 8 . . . . . . . . . 23 . Route ------- -11/Scrapyard -10/Materials (discovered 5 exits: *Mat x3 / [*Min x2]) -10/Mines -9/Materials (discovered 5 exits: *Mat x3 / *Min x2) -9/Mines (discovered 4 exits: *Mat x2 / *Exi / [*Zio]) -9/Exiles (discovered 2 exits: [*Min x2]) -8/Mines (discovered 2 exits: *Mat x2) -8/Materials (discovered 4 exits: Fac x3 / Gar) -8/Garrison (discovered 3 exits: *Fac x3) -7/Factory (discovered 3 exits: *Fac / *Sto / *Low) -7/Waste -7/Factory (discovered 6 exits: *Fac x3 / *Low x2 / Gar) -7/Garrison (discovered 3 exits: *Fac x3) -7/Factory (discovered 6 exits: *Fac / *Sto / *Low x2 / Gar / Gar) -7/Garrison (discovered 3 exits: *Fac x3) -6/Factory (discovered 3 exits: *Fac x2 / Gar) -6/Garrison (discovered 3 exits: *Fac x3) -5/Factory (discovered 3 exits: *Upp / Ext x2) -5/Waste -5/Factory (discovered 4 exits: *Upp x2 / *Ext x2) -5/Extension (discovered 2 exits: *Fac / *Cet) -5/Cetus (discovered 2 exits: *Fac / [*Arc]) -5/Archives (discovered 3 exits: *Fac / *Hub x2) -5/Hub_04(d) (discovered 2 exits: *Fac x2) -4/Factory -4/Garrison (discovered 3 exits: *Fac x3) -4/Factory -4/Garrison -3/Research (discovered 6 exits: *Res x3 / *Arm / *Tes x2) -3/Armory -2/Research (discovered 3 exits: *Acc / *Qua x2) -1/Access (discovered 2 exits: [*Sur] / *Com) -1/Command History --------- Turn | Location | Event 13 | -11/Scrapyard | Discovered new exit (range 15) 187 | -11/Scrapyard | Entered Materials 323 | -10/Materials | Build established: Mutant 534 | -10/Materials | Discovered new exit (range 16) 736 | -10/Materials | Discovered new exit (range 16) 1014 | -10/Materials | Discovered new exit (range 16) 1534 | -10/Materials | Discovered new exit (range 5) 1602 | -10/Materials | Discovered new exit (range 5) 1650 | -10/Materials | Repaired Lgt. Treads 1677 | -10/Materials | Repaired Lgt. Treads 1783 | -10/Materials | Entered Mines 1868 | -10/Mines | Assembled infested the area 1873 | -10/Mines | Assisted by a Guerilla fighting off Assembled 1875 | -10/Mines | Found a damaged Exp. Sensor Array with a note attached 1878 | -10/Mines | Found Prototype Device 1916 | -10/Mines | Destroyed 15 combat bots 2176 | -10/Mines | Discovered new exit (range 4) 2348 | -10/Mines | Core integrity fell below 50% 2417 | -10/Mines | Escorted by a lone wolf Derelict 2515 | -10/Mines | Core integrity fell below 20% 2556 | -10/Mines | Lost 3 allies 2588 | -10/Mines | Entered Materials 2588 | -9/Materials | Evolved 2 slots: Utility x2 2704 | -9/Materials | Lost 4 parts (1p2u1w) 2997 | -9/Materials | Discovered new exit (range 5) 3019 | -9/Materials | Build established: Scavenger-Mutant 3182 | -9/Materials | Identified Exp. Sensor Array 3186 | -9/Materials | Discovered new exit (range 8) 3399 | -9/Materials | Discovered new exit (range 16) 3519 | -9/Materials | Discovered new exit (range 10) 3599 | -9/Materials | Central database locked down 3751 | -9/Materials | Repaired Imp. EM Shotgun 3802 | -9/Materials | Repaired Cmb. Airjet 3853 | -9/Materials | Repaired Cmb. Airjet 3977 | -9/Materials | Learned Storage trap positions 4026 | -9/Materials | Identified exit to Mines 4045 | -9/Materials | Identified exit to Materials 4045 | -9/Materials | Learned location of 1 exit from Materials 4189 | -9/Materials | Loaded intel: 2 recycling unit locations 4253 | -9/Materials | Learned location of 1 exit from Storage 4377 | -9/Materials | Build established: Mutant 4401 | -9/Materials | Repaired Med. Armor Plating 4428 | -9/Materials | Repaired Grenade Launcher 4461 | -9/Materials | Repaired Imp. Treads 4514 | -9/Materials | Repaired Imp. EM Shotgun 4566 | -9/Materials | Repaired Cld. Ion Engine 4676 | -9/Materials | Repaired Exp. Sensor Array 4703 | -9/Materials | Repaired Lgt. Treads 4730 | -9/Materials | Repaired Lgt. Treads 5180 | -9/Materials | Entered Mines 5219 | -9/Mines | Learned Materials terminal intel 5248 | -9/Mines | Deemed a non-threat by the Exiles lab entrance 5248 | -9/Mines | Discovered new exit (range 5) 5424 | -9/Mines | Found a hidden stash of uninstalled traps 5543 | -9/Mines | A Derelict revealed a hidden shortcut to a safe place 5817 | -9/Mines | A weapon hastily lodged in a ceiling crevice suddenly fell to the ground 6102 | -9/Mines | Entered Exiles 6123 | -9/Exiles | Discovered new exit (range 15) 6146 | -9/Exiles | Met 8R-AWN 6171 | -9/Exiles | Met EX-HEX 6246 | -9/Exiles | Met EX-DEC 6288 | -9/Exiles | Learned location of Zion (-7) 6313 | -9/Exiles | Met EX-BIN 6337 | -9/Exiles | Aligned with FarCom system 6339 | -9/Exiles | Given EX-Vault access code 6401 | -9/Exiles | Opened EX-Vault 6411 | -9/Exiles | Found Chronowheel 6454 | -9/Exiles | Warned to stay clear of 0b10 Research branches 6563 | -9/Exiles | Discovered new exit (range 10) 6575 | -9/Exiles | Left Exiles lab with Chronowheel 6575 | -9/Exiles | Entered Mines 6582 | -8/Mines | Core integrity fell below 50% 6604 | -8/Mines | Destroyed 7 combat bots 7746 | -8/Mines | Entered Materials 7746 | -8/Materials | Evolved 2 slots: Propulsion x1, Utility x1 7747 | -8/Materials | Identified exit to Factory 7748 | -8/Materials | Loaded intel: 12 terminal locations 7798 | -8/Materials | Repaired Med. Armor Plating 8388 | -8/Materials | Build established: Scavenger-Mutant 8764 | -8/Materials | Lost 3 parts (2n1u) 9579 | -8/Materials | Identified exit to Garrison 9735 | -8/Materials | Learned Recycling recycling unit intel 9811 | -8/Materials | Entered Garrison 9884 | -8/Garrison | Triggered checkpoint 9895 | -8/Garrison | Build established: Mutant 9922 | -8/Garrison | Garrison Relay disabled 10009 | -8/Garrison | Garrison Relay disabled 10057 | -8/Garrison | Triggered checkpoint 10138 | -8/Garrison | Spotted B-75 Beast 10168 | -8/Garrison | Core integrity fell below 50% 10205 | -8/Garrison | Destroyed B-75 Beast 10287 | -8/Garrison | Discovered exit to Factory (range 12) 10301 | -8/Garrison | Triggered checkpoint 10331 | -8/Garrison | Installed Relay Interface Framework 10413 | -8/Garrison | Triggered checkpoint 10437 | -8/Garrison | Triggered checkpoint 10468 | -8/Garrison | Discovered exit to Factory (range 11) 10487 | -8/Garrison | Triggered checkpoint 10512 | -8/Garrison | Garrison Relay disabled 10764 | -8/Garrison | Triggered checkpoint 10789 | -8/Garrison | Garrison Relay disabled 10862 | -8/Garrison | Discovered exit to Factory (range 10) 10877 | -8/Garrison | Entered Factory 10877 | -7/Factory | Accompanied by 2 allies 10877 | -7/Factory | Evolved 2 slots: Propulsion x2 10878 | -7/Factory | Identified exit to Storage 11188 | -7/Factory | Build established: Scavenger-Mutant 11535 | -7/Factory | Repaired Broken Exp. Sensor Array? 11610 | -7/Factory | Discovered new exit (range 8) 11916 | -7/Factory | Discovered new exit (range 15) 12114 | -7/Factory | Assembled infested ambush trap array 12260 | -7/Factory | Sucked down chute 12260 | -7/Factory | Entered Waste 12265 | -7/Waste | Spotted C-40 Crusher 12267 | -7/Waste | Spotted C-40 Crusher 12268 | -7/Waste | Spotted C-40 Crusher 12280 | -7/Waste | Spotted C-40 Crusher 12280 | -7/Waste | Spotted C-40 Crusher 12282 | -7/Waste | Spotted C-40 Crusher 12324 | -7/Waste | Discovered new exit (range 13) 12542 | -7/Waste | Entered Factory 12619 | -7/Factory | Discovered new exit (range 5) 12767 | -7/Factory | Fabricated Powered Armor? 12821 | -7/Factory | Discovered new exit (range 5) 13012 | -7/Factory | Discovered new exit (range 4) 13270 | -7/Factory | Discovered new exit (range 8) 13478 | -7/Factory | Learned 2 Hub_04(d) zone layouts 13511 | -7/Factory | Learned Extension garrison access intel 13868 | -7/Factory | Build established: Hacker-Mutant 13943 | -7/Factory | Discovered new exit (range 13) 14068 | -7/Factory | Repaired Cmb. Airjet 14105 | -7/Factory | Repaired Cmb. Airjet 14475 | -7/Factory | Fabricated Weapon Mount (x2) 14503 | -7/Factory | Fabricated I-25 Savior (x1) 14633 | -7/Factory | P-60 Hacker assimilated allied Smith 4a 14641 | -7/Factory | P-60 Hacker assimilated allied Savior 4a 14727 | -7/Factory | Fabricated M-28 Smith (x1) 14824 | -7/Factory | Identified exit to Garrison 14824 | -7/Factory | Entered Garrison 14824 | -7/Garrison | Accompanied by 1 ally 14847 | -7/Garrison | Learned Factory security intel 14883 | -7/Garrison | Garrison Relay disabled 14894 | -7/Garrison | Triggered checkpoint 14936 | -7/Garrison | Triggered checkpoint 15125 | -7/Garrison | Triggered checkpoint 15163 | -7/Garrison | Heavy support dispatched to Factory 15330 | -7/Garrison | Expanded RIF knowledge: Patrol Navigation 15365 | -7/Garrison | Discovered new exit (range 10) 15378 | -7/Garrison | Triggered checkpoint 15428 | -7/Garrison | Triggered checkpoint 15487 | -7/Garrison | Heavy support dispatched to Factory 15567 | -7/Garrison | Discovered new exit (range 8) 15578 | -7/Garrison | Triggered checkpoint 15602 | -7/Garrison | Garrison Relay disabled 15659 | -7/Garrison | Heavy support dispatched to Factory 15680 | -7/Garrison | Rescued a captive Derelict 15694 | -7/Garrison | Rescued a captive Derelict 15872 | -7/Garrison | Discovered new exit (range 15) 15896 | -7/Garrison | H-XX Assembler disabled 15987 | -7/Garrison | Garrison Relay disabled 16076 | -7/Garrison | Garrison Relay disabled 16170 | -7/Garrison | Entered Factory 16170 | -7/Factory | Accompanied by 1 ally 16171 | -7/Factory | Identified exit to Lower Caves 16391 | -7/Factory | Discovered exit to Storage (range 10) 16508 | -7/Factory | Identified exit to Garrison 16534 | -7/Factory | Build established: Scavenger-Mutant 17206 | -7/Factory | Garrison activated, responded to threat 17423 | -7/Factory | Build established: Gladiator 17529 | -7/Factory | Discovered new exit (range 16) 17861 | -7/Factory | Fabricated M-28 Smith? 17906 | -7/Factory | Repaired Microactuators 17978 | -7/Factory | Repaired Cld. Airjet 18002 | -7/Factory | Identified exit to Garrison 18075 | -7/Factory | Entered Garrison 18075 | -7/Garrison | Accompanied by 3 allies 18151 | -7/Garrison | Triggered checkpoint 18158 | -7/Garrison | Core integrity fell below 50% 18225 | -7/Garrison | Garrison Relay disabled 18260 | -7/Garrison | Triggered checkpoint 18276 | -7/Garrison | Triggered checkpoint 18295 | -7/Garrison | Triggered checkpoint 18332 | -7/Garrison | Destroyed 7 combat bots 18376 | -7/Garrison | Discovered new exit (range 10) 18400 | -7/Garrison | Build established: Commander-Gladiator 18542 | -7/Garrison | Expanded RIF knowledge: Command Fork 18552 | -7/Garrison | Discovered new exit (range 5) 18634 | -7/Garrison | Discovered new exit (range 10) 18735 | -7/Garrison | Build established: Gladiator 18737 | -7/Garrison | Garrison Relay disabled 18757 | -7/Garrison | Entered Factory 18757 | -6/Factory | Accompanied by 3 allies 18757 | -6/Factory | Evolved 2 slots: Utility x2 19227 | -6/Factory | Discovered new exit (range 4) 19251 | -6/Factory | Lost 6 parts (3n2u1w) 19732 | -6/Factory | Learned 2 Lower Caves zone layouts 19798 | -6/Factory | Learned Hub_04(d) terminal intel 19807 | -6/Factory | First assault squad dispatched 19935 | -6/Factory | Learned Extension stockpile data 19982 | -6/Factory | Identified exit to Factory 20492 | -6/Factory | Fabricated Powered Armor (x2) 20525 | -6/Factory | Fabricated M-28 Smith (x1) 20562 | -6/Factory | Fabricated I-36 Angel? 20636 | -6/Factory | Repaired Chainsword 20704 | -6/Factory | Repaired Great Axe 20750 | -6/Factory | Repaired Microactuators 20846 | -6/Factory | Identified exit to Garrison 20858 | -6/Factory | Entered Garrison 20858 | -6/Garrison | Accompanied by 3 allies 20862 | -6/Garrison | Triggered checkpoint 20905 | -6/Garrison | Expanded RIF knowledge: Alert ID Control 20940 | -6/Garrison | Triggered checkpoint 20953 | -6/Garrison | Triggered checkpoint 20955 | -6/Garrison | Garrison Relay disabled 21031 | -6/Garrison | Triggered checkpoint 21069 | -6/Garrison | Destroyed 11 combat bots 21103 | -6/Garrison | Discovered exit to Factory (range 5) 21118 | -6/Garrison | Triggered checkpoint 21156 | -6/Garrison | Garrison Relay disabled 21430 | -6/Garrison | Build established: Bothacker-Gladiator 21444 | -6/Garrison | Garrison Relay disabled 21464 | -6/Garrison | Triggered checkpoint 21474 | -6/Garrison | Expanded RIF knowledge: Zone Cloak 21491 | -6/Garrison | Discovered exit to Factory (range 13) 21568 | -6/Garrison | Triggered checkpoint 21663 | -6/Garrison | Discovered exit to Factory (range 10) 21670 | -6/Garrison | Triggered checkpoint 21683 | -6/Garrison | Garrison Relay disabled 21855 | -6/Garrison | Build established: Gladiator 22025 | -6/Garrison | Entered Factory 22025 | -5/Factory | Accompanied by 4 allies 22025 | -5/Factory | Evolved 2 slots: Power x1, Propulsion x1 22026 | -5/Factory | Identified exit to Extension 22626 | -5/Factory | Discovered new exit (range 4) 22825 | -5/Factory | Build established: Scout 22925 | -5/Factory | First assault squad dispatched 23028 | -5/Factory | Manually triggered Chute Trap 23028 | -5/Factory | Sucked down chute 23028 | -5/Factory | Entered Waste 23028 | -5/Waste | The area was eerily silent 23154 | -5/Waste | Discovered new exit (range 11) 23175 | -5/Waste | Entered Factory 23460 | -5/Factory | Discovered new exit (range 14) 23478 | -5/Factory | Found Imp. Powered Armor 23518 | -5/Factory | Spotted B-75 Beast 23877 | -5/Factory | Build established: Infiltrator-Ninja 23995 | -5/Factory | Identified exit to Upper Caves 24157 | -5/Factory | Fabricated M-28 Smith (x1) 24227 | -5/Factory | Fabricated I-36 Angel? 24297 | -5/Factory | Fabricated Cld. Airjet (x1) 24354 | -5/Factory | Fabricated Cld. Airjet (x1) 24377 | -5/Factory | Build established: Gladiator 24563 | -5/Factory | Entered Extension 24563 | -5/Extension | Accompanied by 2 allies 24564 | -5/Extension | Identified exit to Cetus 24880 | -5/Extension | Rescued A7 24913 | -5/Extension | Rescued a captive Derelict 24914 | -5/Extension | Rescued a captive Derelict 25004 | -5/Extension | Rescued a captive Derelict 25175 | -5/Extension | Spotted B-75 Beast 25184 | -5/Extension | Allies destroyed B-75 Beast 25188 | -5/Extension | Spotted B-75 Beast 25205 | -5/Extension | Allies destroyed B-75 Beast 25294 | -5/Extension | Discovered new exit (range 15) 25334 | -5/Extension | Entered Cetus 25334 | -5/Cetus | Accompanied by 13 allies (A7) 25339 | -5/Cetus | Acquired a Cetus Manufacturing Module code from A7 25348 | -5/Cetus | Spotted Cetus Guard 25348 | -5/Cetus | Spotted Cetus Guard 25351 | -5/Cetus | Spotted Cetus Guard 25353 | -5/Cetus | Allies destroyed Cetus Guard 25354 | -5/Cetus | Spotted Cetus Guard 25357 | -5/Cetus | Destroyed Cetus Guard 25367 | -5/Cetus | Allies destroyed Cetus Guard 25368 | -5/Cetus | Allies destroyed Cetus Guard 25384 | -5/Cetus | Started Cetus Manufacturing Module 25407 | -5/Cetus | Escorted A7 to Cetus Mainframe 25409 | -5/Cetus | Manufactured an Enhanced Grunt 25434 | -5/Cetus | Manufactured an Enhanced Grunt 25459 | -5/Cetus | Manufactured an Enhanced Grunt 25484 | -5/Cetus | Manufactured an Enhanced Grunt 25509 | -5/Cetus | Manufactured an Enhanced Grunt 25513 | -5/Cetus | Discovered new exit (range 16) 25533 | -5/Cetus | Spotted Cetus Guard 25535 | -5/Cetus | Spotted Cetus Guard 25538 | -5/Cetus | Destroyed Cetus Guard 25538 | -5/Cetus | Spotted Cetus Guard 25538 | -5/Cetus | Allies destroyed Cetus Guard 25541 | -5/Cetus | Allies destroyed Cetus Guard 25544 | -5/Cetus | Allies destroyed Cetus Guard 25546 | -5/Cetus | Discovered new exit (range 15) 25549 | -5/Cetus | Met Revision 17 25645 | -5/Cetus | Entered Archives 25645 | -5/Archives | Accompanied by 16 allies (A7) 25651 | -5/Archives | Received a hacking code to weaken MAIN.C 25677 | -5/Archives | Discovered new exit (range 16) 25707 | -5/Archives | Discovered new exit (range 15) 25728 | -5/Archives | Discovered new exit (range 13) 25843 | -5/Archives | Build established: Commander-Gladiator 27000 | -5/Archives | Entered Hub_04(d) 27000 | -5/Hub_04(d) | Accompanied by 15 allies 27001 | -5/Hub_04(d) | Identified exit to Factory 27002 | -5/Hub_04(d) | Loaded intel: 14 terminal locations 27032 | -5/Hub_04(d) | Identified exit to Garrison 27067 | -5/Hub_04(d) | Network Hub disabled 27067 | -5/Hub_04(d) | Network Hub disabled 27068 | -5/Hub_04(d) | Spotted Lightning 27068 | -5/Hub_04(d) | Spotted Lightning 27068 | -5/Hub_04(d) | Spotted Lightning 27099 | -5/Hub_04(d) | Disrupted transfer network 27164 | -5/Hub_04(d) | Lost 11 allies 27220 | -5/Hub_04(d) | Entered Factory 27220 | -4/Factory | Evolved 2 slots: Propulsion x1, Weapon x1 27291 | -4/Factory | Fabricated M-28 Smith (x1) 27490 | -4/Factory | Garrison activated, responded to threat 27573 | -4/Factory | Identified exit to Garrison 27581 | -4/Factory | Entered Garrison 27581 | -4/Garrison | Accompanied by 1 ally 27614 | -4/Garrison | Expanded RIF knowledge: Threat Obfuscation 27627 | -4/Garrison | Triggered checkpoint 27672 | -4/Garrison | Spotted B-86 Titan 27712 | -4/Garrison | Destroyed B-86 Titan 27845 | -4/Garrison | Triggered checkpoint 27883 | -4/Garrison | Destroyed 13 combat bots 27921 | -4/Garrison | Triggered checkpoint 28008 | -4/Garrison | Garrison Relay disabled 28018 | -4/Garrison | Discovered new exit (range 14) 28052 | -4/Garrison | Discovered new exit (range 13) 28054 | -4/Garrison | Spotted B-75 Beast 28054 | -4/Garrison | Spotted B-90 Cyclops 28077 | -4/Garrison | Triggered checkpoint 28141 | -4/Garrison | Build established: Gladiator 28206 | -4/Garrison | Garrison Relay disabled 28243 | -4/Garrison | Triggered checkpoint 28427 | -4/Garrison | Learned Factory security intel 28438 | -4/Garrison | Discovered new exit (range 10) 28443 | -4/Garrison | Triggered checkpoint 28447 | -4/Garrison | Garrison Relay disabled 28566 | -4/Garrison | Entered Factory 28566 | -4/Factory | Accompanied by 1 ally 29231 | -4/Factory | Fabricated M-28 Smith (x1) 29310 | -4/Factory | Identified exit to Garrison 29313 | -4/Factory | Entered Garrison 29313 | -4/Garrison | Accompanied by 1 ally 29340 | -4/Garrison | Expanded RIF knowledge: Watcher Feeds 29377 | -4/Garrison | Triggered checkpoint 29410 | -4/Garrison | Triggered checkpoint 29432 | -4/Garrison | Spotted B-86 Titan 29494 | -4/Garrison | Lost 5 parts (2p2u1w) 29540 | -4/Garrison | Destroyed B-86 Titan 29631 | -4/Garrison | Triggered checkpoint 29715 | -4/Garrison | Discovered new exit (range 11) 29724 | -4/Garrison | Garrison Relay disabled 29949 | -4/Garrison | Expanded RIF knowledge: Signal Jamming 29988 | -4/Garrison | Entered Research 29988 | -3/Research | Accompanied by 1 ally 29988 | -3/Research | Evolved 2 slots: Propulsion x1, Utility x1 30053 | -3/Research | Identified exit to Armory 30053 | -3/Research | Identified exit to Testing 30188 | -3/Research | Revision forces began assault on 0b10 30233 | -3/Research | Met up with Revision 17++ 30357 | -3/Research | Discovered new exit (range 14) 30528 | -3/Research | Found Prototype Processor 30530 | -3/Research | Identified Spectral Analyzer 30688 | -3/Research | Research terminal network offline 31426 | -3/Research | Spotted Striker 31433 | -3/Research | Destroyed Striker 31491 | -3/Research | Spotted Striker 31501 | -3/Research | Lost 3 allies 31510 | -3/Research | Destroyed Striker 31735 | -3/Research | Build established: Scavenger-Gladiator 31918 | -3/Research | Discovered new exit (range 9) 31992 | -3/Research | Discovered new exit (range 15) 32118 | -3/Research | Entered Armory 32207 | -3/Armory | Assisted by bots powering up and referring to "LRC-V3" 32452 | -3/Armory | Build established: Commander-Gladiator 32787 | -3/Armory | Fabricated Powered Armor (x2) 32814 | -3/Armory | Fabricated Imp. Utility Shielding (x2) 32860 | -3/Armory | Build established: Scavenger-Gladiator 32938 | -3/Armory | Discovered new exit (range 8) 32942 | -3/Armory | Entered Research 32942 | -2/Research | Evolved 2 slots: Utility x2 33178 | -2/Research | Destroyed 10 combat bots 33627 | -2/Research | Discovered new exit (range 40) 33743 | -2/Research | Identified exit to Quarantine 33762 | -2/Research | Discovered new exit (range 4) 33784 | -2/Research | Entered Access 33784 | -1/Access | Evolved 2 slots: Utility x1, Weapon x1 33811 | -1/Access | Lost 4 parts (1p1n2u) 34037 | -1/Access | Discovered new exit (range 3) 34281 | -1/Access | Destroyed 7 combat bots 34834 | -1/Access | Destroyed 14 combat bots 34897 | -1/Access | Spotted B-99 Colossus 34941 | -1/Access | Discovered new exit (range 7) 34944 | -1/Access | Entered Command 35166 | -1/Command | Spotted M Guard 35166 | -1/Command | Spotted M Guard 35166 | -1/Command | Spotted Combat Programmer 35166 | -1/Command | Spotted Combat Programmer 35185 | -1/Command | Destroyed Combat Programmer 35193 | -1/Command | Destroyed Combat Programmer 35309 | -1/Command | Met MAIN.C 35328 | -1/Command | Core integrity fell below 50% 35360 | -1/Command | Lost 19 parts (4p9n5u1w) 35509 | -1/Command | Core integrity fell below 20% 35530 | -1/Command | Spotted Alpha 7 35532 | -1/Command | Spotted Striker 35566 | -1/Command | Build established: Mutant 35662 | -1/Command | Destroyed by M Guard with Ragnarok Missile Launcher Last Messages --------------- 35585_ W-44 Eye distress signal jammed. 35585_ Slug penetrates Wall. 35585_ Penetrated by Slug. 35585_ W-44 Eye distress signal jammed. 35585_ Penetrated by Slug. 35586_ W-44 Eye distress signal jammed. 35589_ Slug penetrates Door. 35591_ >> Watcher Feeds: Established visual feed link with W-44 Eye. 35594_ ALERT: Rogue bot located, Programmers report to Command Zone 4J. 35596_ >> Watcher Feeds: Feed link from W-44 Eye lost. 35596_ >> Watcher Feeds: Established visual feed link with W-44 Eye. 35597_ >> Watcher Feeds: Feed link from W-44 Eye lost. 35600_ Acquired 8 matter. 35611_ >> Watcher Feeds: Established visual feed link with W-44 Eye. 35638_ >> Watcher Feeds: Feed link from W-44 Eye lost. 35644_ >> Watcher Feeds: Established visual feed link with W-44 Eye. 35646_ K-01 Serf cleans the Quantum Router. 35655_ >> Watcher Feeds: Established visual feed link with W-44 Eye. 35657_ >> Watcher Feeds: Feed link from W-44 Eye lost. 35662_ >> Watcher Feeds: Established visual feed link with W-44 Eye. Map ----- +----------------------------------------------------+ | ????????????????### ####BB "" # #??? | | ??????????????????# ???# B """" # #??? | | ??????????????????# ???### """" # "" #??? | | ??????????????????#+?????# "" # """" #??? | | ?????????????????????????# # """" #??? | | ?????????????????????????# w # "" #??? | | ?????????????????????????# k # #### | | ?????????????????????????# "" # + | | ?????????????????????????# """" # #### | | ?????????????????????????# """" # ###+####??? | | ?????????????????????????# "" ###?# #?????? | | ?????????????????????????# #???# #?????? | | ?????????????????????????# #???# #?????? | | ?????????????????????????# #???#+####### | | ?????????????????????????# #???# | | ?????????????????????????# Y#???# | | ?????????????????????????# ^ #???# | | ?????????????????????????# ##### ! | | ???###????????????######## ""T"" # = | | ??## #####??????### # # """"" Y # | | #### # ####?### #### + | | ### ### #?# # # # | | ### # ### W # ### # # | | k ##### # | | #???# # | | @ #???# # | | #???# #####+### | | #???# | | ### ## ### W ##########+#######+#+######### | | #?# ### #?# #???# %# # | | #?#####?#####?#####???# # + | | ??????????????????????#"" # % ### | | ??????????????????????#" +% #?? | | ??????????????????????#"" # #?? | | ??????????????????????#T # #?? | | ??????????????????????#"" # #?? | | ??????????????????????#"" ! #####+#############?? | | ??????????????????????#"" #???# #?????????????? | | ??????????????????????# #???# #?????????????? | | ??????????????????????#! ##### #?????????????? | | ??????????????????????# + #????######### | | ??????????????????????# # #??### # # # # | | ??????????????????????#####+## #### | | ??????????????????????????# / | | ??????????????????????????# / | | ??????????????????????????# / | | ?????????????????######???# / | | ?????????????????# *#???###### ### | | ?????????????????# #????????# #?### # # # # | | ?????????????????# #????????# #???#####?#??? | +----------------------------------------------------+ Best States ------------- Heat Dissipation 75 Energy Generation 45 Energy Capacity 1110 Matter Stores 300 Matter Capacity 300 Sight Range 22 Terrain Scan Density 10 ECM Strength 2 Jamming Range 16 Additional Mass Support 12 Armor Coverage 800 Resistance: TH 15 Core Shielding 20 Utility Shielding 66 Point Defense Rating 240 Melee Speed Boost 40 Phase Shifting 15 Evasion (%) 87 Targeting Accuracy 20 Core Analysis 6 Recoil Reduction 3 Offensive Hacking 24 Defensive Hacking 20 Relay Coupler Types 1 Relay Coupler Value 35 Authchip Count 4 Item Schematics ----------------- Hcp. Storage Unit | -10/Materials | Hacked ECM Suite | -9/Materials | Hacked Cmb. Airjet | -8/Materials | Scanalyzed Exp. Sensor Array | -8/Materials | Scanalyzed Powered Armor | -7/Factory | Hacked Lrn. Proton Cannon | -7/Factory | Scanalyzed Imp. Utility Shielding | -7/Factory | Scanalyzed Adv. ECM Suite | -7/Factory | Scanalyzed Cld. Particle Cannon | -7/Factory | Scanalyzed Weapon Mount | -7/Factory | Hacked Cld. Airjet | -6/Factory | Scanalyzed Cmb. Linear Gravjet | -4/Factory | Scanalyzed Robot Schematics ------------------ M-13 Machinist | -9/Materials | Hacked A-02 Transporter | -8/Materials | Hacked I-25 Savior | -8/Materials | Hacked M-28 Smith | -7/Factory | Hacked I-36 Angel | -6/Factory | Hacked Fabricated ------------ Powered Armor | x2 | -7/Factory | Authchip Weapon Mount | x2 | -7/Factory | Authchip I-25 Savior | x1 | -7/Factory | Authchip M-28 Smith | x1 | -7/Factory | Authchip M-28 Smith | x1 | -7/Factory | Authchip Powered Armor | x2 | -6/Factory | Authchip M-28 Smith | x1 | -6/Factory | Authchip I-36 Angel | x1 | -6/Factory | Authchip M-28 Smith | x1 | -5/Factory | Authchip I-36 Angel | x1 | -5/Factory | Authchip Cld. Airjet | x1 | -5/Factory | Authchip Cld. Airjet | x1 | -5/Factory | Authchip M-28 Smith | x1 | -4/Factory M-28 Smith | x1 | -4/Factory | Authchip Powered Armor | x2 | -3/Armory | Authchip Imp. Utility Shielding | x2 | -3/Armory | Authchip Alien Tech Used ----------------- None Achievements -------------- Exterminator Short-term Sacrifices Challenges ------------ None Game ------ Seed ReactionSuspensionSpoofer Manual? 0 Play Time 11:35:24 Cumulative 342.7 hours Start 2025.03.04 @ 14:21:49 End 2025.03.05 @ 05:50:12 Sessions 7 Manual Loads 0 Difficulty Rogue Special Mode None Game No. 52 Rogue 52 Adventurer 0 Explorer 0 Win Type - Total 13 Types 4/0/5/1/1/1/0/1/0 Lore% 56 Gallery% 73 Achievement% 67 Wizard Run 0 Options --------- Layout 0 ASCII 1 Keyboard 1 Movement Arrows Keybinds 0 Fullscreen 1 Font 12/Cog Map View 83x54 Zoom Use 0% Tactical HUD 1 Map Filters NONE Filters NONE Steam 0 RUN: 50da1fd7-4b0f-48fc-9022-9676ac2337de